{"text_format":"1","workbook":"xlsx","n_sheets":7,"sheets":["Einteilung","Vorrunde Gruppenspiele","Play-off","Modus Play-off","Torschützen U12","Ergebnis","Statistische Daten"],"not_rendered":{"charts":0,"images":8,"macros":1,"external_links":0,"defined_names":6,"comments":0,"pivot_tables":0},"unopened":[],"bounds":{"document_bytes":16777216,"sheet_cells":100000,"rows_first":2000,"rows_last":500,"rows_between":2000,"halvings":0,"cell_chars":16384,"cell_head_chars":4096},"cells_cut":0,"cells_raw":0,"read":"whole","date_system":"1900"}

{"sheet":"Einteilung","index":0,"n_rows":23,"n_cols":13,"rows_kept":23,"cut":false,"hidden":false,"merged":[[0,1,0,7],[10,1,10,3],[3,1,3,3],[17,1,17,3],[1,1,1,7]]}
[]
[null,"U12 - LM"]
[]
[null,"Gruppe I"]
[null,"Team",null,"Trikotfarbe",null,"Turnierbeginn","14:15:00","Uhr"]
[null,"UFC Rohrbach-Berg",null,null,"I","Spieldauer","00:10:00","min"]
[null,"U. Pichling",null,null,"I","Pause","00:02:00","min"]
[null,"U. Altenfelden",null,null,"I","Beginn Playoff",{"$f":"'Play-off'!K6","v":"17:55:00"},"Uhr"]
[null,"U. Walding/Rottenegg",null,null,"I","Turnierende",{"$f":"'Play-off'!R28+Einteilung!G6","v":"20:30:00"},"Uhr",null,null,"Pause Vorrunde","00:02:00","min"]
[]
[null,"Gruppe II"]
[null,"Team",null,"Trikotfarbe"]
[null,"U. St. Peter/Wimberg",null,null,"II"]
[null,"U. Gampern",null,null,"II"]
[null,"UFC Aigen/Schlägl",null,null,"II"]
[null,"U. Lembach",null,null,"II"]
[]
[null,"Gruppe III"]
[null,"Team",null,"Trikotfarbe"]
[null,"U. St. Martin/Mkr.",null,null,"III"]
[null,"SPG Putzleinsdorf/Hofkirchen",null,null,"III"]
[null,"SPG Julbach/Ulrichsb./Klaffer",null,null,"III"]
[null,"U. Ried/Riedmark",null,null,"III"]

{"sheet":"Vorrunde Gruppenspiele","index":1,"n_rows":26,"n_cols":83,"rows_kept":26,"cut":false,"hidden":false,"merged":[[1,80,1,82],[1,76,1,78],[1,41,1,72],[1,1,1,17],[17,1,17,10],[3,41,9,41],[3,1,3,10],[3,14,3,15],[9,1,9,10],[11,1,11,10],[11,14,11,15],[19,41,25,41],[11,41,17,41],[19,1,19,10],[19,14,19,15],[25,1,25,10]]}
[]
[null,"Spielplan Vorrunde U12",null,null,null,null,null,null,null,null,null,null,null,null,null,null,null,null,null,null,null,null,null,null,null,null,null,null,null,null,null,null,null,null,null,null,null,null,null,null,null,"U12",null,null,null,null,null,null,null,null,null,null,null,null,null,null,null,null,null,null,null,null,null,null,null,null,null,null,null,null,null,null,null,null,null,null,"Berechnung für jede Gruppe\ninkl. direktes Duell",null,null,null,"Berechnung für Gruppenvergleich Gruppe 1-3"]
[]
[null,"GRUPPE I",null,null,null,null,null,null,null,null,null,null,"Rd.","Zeit","Ergebnisse GRUPPE I",null,null,null,null,null,null,null,null,null,null,null,null,null,null,null,null,null,null,null,null,null,null,null,null,null,null,"I","Sieger","Verlierer","Remis","Remis","HT","Team","Spiele","S","U","N","+","-","Tordiff.","Punkte","Berechnung","Rang","Hilfswert","Berechnung NEU","Rang",null,"Team","Spiele","S","U","N","+","-","Tordiff.","Punkte","Berechnung","Rang",null,null,null,1,"Gr.","Berechnungs-\npunkte",null,1,"Gr.","Berechnungs-\npunkte"]
[null,"Rg.","Team","Sp.","S","U","N","+","-","Tord.","Pkt.",null,1,{"$f":"Einteilung!G5","v":"14:15:00"},{"$f":"AV5","v":"UFC Rohrbach-Berg"},{"$f":"AV6","v":"U. Pichling"},3,0,"I",{"$f":"Einteilung!B$2","v":"U12 - LM"},null,null,null,null,null,null,null,null,null,null,null,null,null,null,null,null,null,null,null,null,null,null,{"$f":"IF(AND(Q5=\"\",R5=\"\"),\"\",IF(Q5=R5,\"\",IF(Q5>R5,O5,P5)))","v":"UFC Rohrbach-Berg"},{"$f":"IF(AND(Q5=\"\",R5=\"\"),\"\",IF(Q5=R5,\"\",IF(Q5>R5,P5,O5)))","v":"U. Pichling"},{"$f":"IF(AND(Q5=\"\",R5=\"\"),\"\",IF(Q5=R5,O5,\"\"))","v":""},{"$f":"IF(AND(Q5=\"\",R5=\"\"),\"\",IF(Q5=R5,P5,\"\"))","v":""},{"$f":"IF(ISERROR(IF(VLOOKUP(O5,$AV$5:$BI$8,9,0)=VLOOKUP(P5,$AV$5:$BI$8,9,0),IF(Q5>R5,1,IF(Q5=R5,0,-1)),0)),0,IF(VLOOKUP(O5,$AV$5:$BI$8,9,0)=VLOOKUP(P5,$AV$5:$BI$8,9,0),IF(Q5>R5,1,IF(Q5=R5,0,-1)),0))","v":0},{"$f":"Einteilung!B6","v":"UFC Rohrbach-Berg"},{"$f":"SUM(AX5:AZ5)","v":3},{"$f":"COUNTIF($AQ$5:$AQ$10,$AV5)","v":3},{"$f":"COUNTIF($AS$5:$AS$10,$AV5)+COUNTIF($AT$5:$AT$10,$AV5)","v":0},{"$f":"COUNTIF($AR$5:$AR$10,$AV5)","v":0},{"$f":"SUM((O$5:O$10=AV5)*(Q$5:Q$10))+SUM((P$5:P$10=AV5)*(R$5:R$10))","v":12},{"$f":"SUM((O$5:O$10=AV5)*(R$5:R$10))+SUM((P$5:P$10=AV5)*(Q$5:Q$10))","v":0},{"$f":"BA5-BB5","v":12},{"$f":"3*AX5+1*AY5","v":9},{"$f":"BD5*1000000+BC5*1000+BA5*10","v":9012120},null,{"$f":"SUMIF(O:O,AV5,AU:AU)","v":0},{"$f":"BD5*1000000+BC5*1000+BA5*10-AW5/1000+BG5*100000","v":9012119.9969999995},{"$f":"RANK(BH5,BH$5:BH$8,0)","v":1},null,{"$f":"AV$5","v":"UFC Rohrbach-Berg"},3,3,0,0,12,0,12,9,{"$f":"BH$5","v":9012119.9969999995},{"$f":"RANK(BT5,BT$5:BT$8,0)","v":1},null,null,null,{"$f":"BK$5","v":"UFC Rohrbach-Berg"},{"$f":"VLOOKUP(BY5,Einteilung!$B:$E,4,FALSE)","v":"I"},{"$f":"BT$5","v":9012119.9969999995},null,{"$f":"BY$5","v":"UFC Rohrbach-Berg"},{"$f":"BZ$5","v":"I"},{"$f":"VLOOKUP(CC5,AV:BI,10,FALSE)","v":9012120}]
[null,{"$f":"RANK(BT5,BT$5:BT$10,0)","v":1},{"$f":"IF(SUM(D$6:D$11)=0,Einteilung!B6,BK5)","v":"UFC Rohrbach-Berg"},{"$f":"BL5","v":3},3,0,0,12,0,12,9,null,2,{"$f":"N5+Einteilung!G$6+Einteilung!G$7","v":"14:27:00"},{"$f":"AV8","v":"U. Walding/Rottenegg"},{"$f":"AV7","v":"U. Altenfelden"},4,0,"I",{"$f":"Einteilung!B$2","v":"U12 - LM"},null,null,null,null,null,null,null,null,null,null,null,null,null,null,null,null,null,null,null,null,null,null,"U. Walding/Rottenegg","U. Altenfelden","","",{"$f":"IF(ISERROR(IF(VLOOKUP(O6,$AV$5:$BI$8,9,0)=VLOOKUP(P6,$AV$5:$BI$8,9,0),IF(Q6>R6,1,IF(Q6=R6,0,-1)),0)),0,IF(VLOOKUP(O6,$AV$5:$BI$8,9,0)=VLOOKUP(P6,$AV$5:$BI$8,9,0),IF(Q6>R6,1,IF(Q6=R6,0,-1)),0))","v":0},{"$f":"Einteilung!B7","v":"U. Pichling"},{"$f":"SUM(AX6:AZ6)","v":3},{"$f":"COUNTIF($AQ$5:$AQ$10,$AV6)","v":1},{"$f":"COUNTIF($AS$5:$AS$10,$AV6)+COUNTIF($AT$5:$AT$10,$AV6)","v":0},{"$f":"COUNTIF($AR$5:$AR$10,$AV6)","v":2},{"$f":"SUM((O$5:O$10=AV6)*(Q$5:Q$10))+SUM((P$5:P$10=AV6)*(R$5:R$10))","v":4},{"$f":"SUM((O$5:O$10=AV6)*(R$5:R$10))+SUM((P$5:P$10=AV6)*(Q$5:Q$10))","v":6},{"$f":"BA6-BB6","v":-2},{"$f":"3*AX6+1*AY6","v":3},{"$f":"BD6*1000000+BC6*1000+BA6*10","v":2998040},null,{"$f":"SUMIF(O:O,AV6,AU:AU)","v":0},{"$f":"BD6*1000000+BC6*1000+BA6*10-AW6/1000+BG6*100000","v":2998039.997},{"$f":"RANK(BH6,BH$5:BH$8,0)","v":3},null,{"$f":"AV$8","v":"U. Walding/Rottenegg"},3,2,0,1,7,4,3,6,{"$f":"BH$8","v":6003069.9970000004},{"$f":"RANK(BT6,BT$5:BT$8,0)","v":2},null,null,null,{"$f":"BK$21","v":"SPG Julbach/Ulrichsb./Klaffer"},{"$f":"VLOOKUP(BY6,Einteilung!$B:$E,4,FALSE)","v":"III"},{"$f":"BT$21","v":7006069.9970000004},null,{"$f":"BY$6","v":"SPG Julbach/Ulrichsb./Klaffer"},{"$f":"BZ$6","v":"III"},{"$f":"VLOOKUP(CC6,AV:BI,10,FALSE)","v":7006070}]
[null,{"$f":"RANK(BT6,BT$5:BT$10,0)","v":2},{"$f":"IF(SUM(D$6:D$11)=0,Einteilung!B7,BK6)","v":"U. Walding/Rottenegg"},3,2,0,1,7,4,3,6,null,7,{"$f":"N22+Einteilung!G$6+Einteilung!G$7","v":"15:27:00"},{"$f":"AV7","v":"U. Altenfelden"},{"$f":"AV5","v":"UFC Rohrbach-Berg"},0,7,"I",{"$f":"Einteilung!B$2","v":"U12 - LM"},null,null,null,null,null,null,null,null,null,null,null,null,null,null,null,null,null,null,null,null,null,null,"UFC Rohrbach-Berg","U. Altenfelden","","",0,{"$f":"Einteilung!B8","v":"U. Altenfelden"},3,0,0,3,{"$f":"SUM((O$5:O$10=AV7)*(Q$5:Q$10))+SUM((P$5:P$10=AV7)*(R$5:R$10))","v":0},{"$f":"SUM((O$5:O$10=AV7)*(R$5:R$10))+SUM((P$5:P$10=AV7)*(Q$5:Q$10))","v":13},-13,0,-13000,null,{"$f":"SUMIF(O:O,AV7,AU:AU)","v":0},-13000.003000000001,4,null,{"$f":"AV$6","v":"U. Pichling"},3,1,0,2,4,6,-2,3,{"$f":"BH$6","v":2998039.997},{"$f":"RANK(BT7,BT$5:BT$8,0)","v":3},null,null,null,{"$f":"BK$13","v":"U. St. Peter/Wimberg"},{"$f":"VLOOKUP(BY7,Einteilung!$B:$E,4,FALSE)","v":"II"},{"$f":"BT$13","v":7005059.9970000004},null,{"$f":"BY$7","v":"U. St. Peter/Wimberg"},{"$f":"BZ$7","v":"II"},{"$f":"VLOOKUP(CC7,AV:BI,10,FALSE)","v":7005060}]
[null,{"$f":"RANK(BT7,BT$5:BT$10,0)","v":3},{"$f":"IF(SUM(D$6:D$11)=0,Einteilung!B8,BK7)","v":"U. Pichling"},3,1,0,2,4,6,-2,3,null,8,{"$f":"N7+Einteilung!G$6+Einteilung!G$7","v":"15:39:00"},{"$f":"AV8","v":"U. Walding/Rottenegg"},{"$f":"AV6","v":"U. Pichling"},3,2,"I",{"$f":"Einteilung!B$2","v":"U12 - LM"},null,null,null,null,null,null,null,null,null,null,null,null,null,null,null,null,null,null,null,null,null,null,"U. Walding/Rottenegg","U. Pichling","","",0,{"$f":"Einteilung!B9","v":"U. Walding/Rottenegg"},3,2,0,1,{"$f":"SUM((O$5:O$10=AV8)*(Q$5:Q$10))+SUM((P$5:P$10=AV8)*(R$5:R$10))","v":7},{"$f":"SUM((O$5:O$10=AV8)*(R$5:R$10))+SUM((P$5:P$10=AV8)*(Q$5:Q$10))","v":4},3,6,6003070,null,{"$f":"SUMIF(O:O,AV8,AU:AU)","v":0},6003069.9970000004,2,null,{"$f":"AV$7","v":"U. Altenfelden"},3,0,0,3,0,13,-13,0,{"$f":"BH$7","v":-13000.003000000001},{"$f":"RANK(BT8,BT$5:BT$8,0)","v":4}]
[null,{"$f":"RANK(BT8,BT$5:BT$10,0)","v":4},{"$f":"IF(SUM(D$6:D$11)=0,Einteilung!B9,BK8)","v":"U. Altenfelden"},3,0,0,3,0,13,-13,0,null,13,{"$f":"N24+Einteilung!G$6+Einteilung!G$7","v":"16:39:00"},{"$f":"AV5","v":"UFC Rohrbach-Berg"},{"$f":"AV8","v":"U. Walding/Rottenegg"},2,0,"I",{"$f":"Einteilung!B$2","v":"U12 - LM"},null,null,null,null,null,null,null,null,null,null,null,null,null,null,null,null,null,null,null,null,null,null,"UFC Rohrbach-Berg","U. Walding/Rottenegg","","",0,null,null,null,null,null,null,null,null,null,null,null,null,null,null,null,null,null,null,null,null,null,null,null,null,null,null,null,null,null,2,"Gr.","Berechnungs-\npunkte",null,2,"Gr.","Berechnungs-\npunkte"]
[null,{"$f":"IF(AND(SUM(B6:B9)<>10,SUM(D6:D9)=12),\"ACHTUNG Gleichstand --> Penaltyschießen erforderlich !!!\",\"\")","v":""},null,null,null,null,null,null,null,null,null,null,14,{"$f":"N9+Einteilung!G$6+Einteilung!G$7","v":"16:51:00"},{"$f":"AV6","v":"U. Pichling"},{"$f":"AV7","v":"U. Altenfelden"},2,0,"I",{"$f":"Einteilung!B$2","v":"U12 - LM"},null,null,null,null,null,null,null,null,null,null,null,null,null,null,null,null,null,null,null,null,null,null,{"$f":"IF(AND(Q10=\"\",R10=\"\"),\"\",IF(Q10=R10,\"\",IF(Q10>R10,O10,P10)))","v":"U. Pichling"},{"$f":"IF(AND(Q10=\"\",R10=\"\"),\"\",IF(Q10=R10,\"\",IF(Q10>R10,P10,O10)))","v":"U. Altenfelden"},{"$f":"IF(AND(Q10=\"\",R10=\"\"),\"\",IF(Q10=R10,O10,\"\"))","v":""},{"$f":"IF(AND(Q10=\"\",R10=\"\"),\"\",IF(Q10=R10,P10,\"\"))","v":""},0,null,2,3,4,5,6,7,8,9,10,null,null,null,null,null,null,null,null,null,null,null,null,null,null,null,null,null,null,null,{"$f":"BK$14","v":"U. Gampern"},{"$f":"VLOOKUP(BY10,Einteilung!$B:$E,4,FALSE)","v":"II"},{"$f":"BT$14","v":7004049.9970000004},null,{"$f":"BY$10","v":"U. Gampern"},{"$f":"BZ$10","v":"II"},{"$f":"VLOOKUP(CC10,AV:BI,10,FALSE)","v":7004050}]
[null,null,null,null,null,null,null,null,null,null,null,null,null,null,null,null,null,null,null,null,null,null,null,null,null,null,null,null,null,null,null,null,null,null,null,null,null,null,null,null,null,null,null,null,null,null,null,null,null,null,null,null,null,null,null,null,null,null,null,null,null,null,null,null,null,null,null,null,null,null,null,null,null,null,null,null,{"$f":"BK$6","v":"U. Walding/Rottenegg"},{"$f":"VLOOKUP(BY11,Einteilung!$B:$E,4,FALSE)","v":"I"},{"$f":"BT$6","v":6003069.9970000004},null,{"$f":"BY$11","v":"U. Walding/Rottenegg"},{"$f":"BZ$11","v":"I"},{"$f":"VLOOKUP(CC11,AV:BI,10,FALSE)","v":6003070}]
[null,"GRUPPE II",null,null,null,null,null,null,null,null,null,null,"Rd.","Zeit","Ergebnisse GRUPPE II",null,null,null,null,null,null,null,null,null,null,null,null,null,null,null,null,null,null,null,null,null,null,null,null,null,null,"II","Sieger","Verlierer","Remis","Remis","HT","Team","Spiele","S","U","N","+","-","Tordiff.","Punkte","Berechnung","Rang","Hilfswert","Berechnung NEU","Rang",null,"Team","Spiele","S","U","N","+","-","Tordiff.","Punkte","Berechnung","Rang",null,null,null,{"$f":"BK$22","v":"U. Ried/Riedmark"},{"$f":"VLOOKUP(BY12,Einteilung!$B:$E,4,FALSE)","v":"III"},{"$f":"BT$22","v":5008089.9970000004},null,{"$f":"BY$12","v":"U. Ried/Riedmark"},{"$f":"BZ$12","v":"III"},{"$f":"VLOOKUP(CC12,AV:BI,10,FALSE)","v":5008090}]
[null,"Rg.","Team","Sp.","S","U","N","+","-","Tord.","Pkt.",null,3,{"$f":"N6+Einteilung!G$6+Einteilung!G$7","v":"14:39:00"},{"$f":"AV13","v":"U. St. Peter/Wimberg"},{"$f":"AV14","v":"U. Gampern"},1,1,"II",{"$f":"Einteilung!B$2","v":"U12 - LM"},null,null,null,null,null,null,null,null,null,null,null,null,null,null,null,null,null,null,null,null,null,null,{"$f":"IF(AND(Q13=\"\",R13=\"\"),\"\",IF(Q13=R13,\"\",IF(Q13>R13,O13,P13)))","v":""},{"$f":"IF(AND(Q13=\"\",R13=\"\"),\"\",IF(Q13=R13,\"\",IF(Q13>R13,P13,O13)))","v":""},{"$f":"IF(AND(Q13=\"\",R13=\"\"),\"\",IF(Q13=R13,O13,\"\"))","v":"U. St. Peter/Wimberg"},{"$f":"IF(AND(Q13=\"\",R13=\"\"),\"\",IF(Q13=R13,P13,\"\"))","v":"U. Gampern"},{"$f":"IF(ISERROR(IF(VLOOKUP(O13,$AV$13:$BI$16,9,0)=VLOOKUP(P13,$AV$13:$BI$16,9,0),IF(Q13>R13,1,IF(Q13=R13,0,-1)),0)),0,IF(VLOOKUP(O13,$AV$13:$BI$16,9,0)=VLOOKUP(P13,$AV$13:$BI$16,9,0),IF(Q13>R13,1,IF(Q13=R13,0,-1)),0))","v":0},{"$f":"Einteilung!B13","v":"U. St. Peter/Wimberg"},{"$f":"SUM(AX13:AZ13)","v":3},{"$f":"COUNTIF($AQ$13:$AQ$18,$AV13)","v":2},{"$f":"COUNTIF($AS$13:$AS$18,$AV13)+COUNTIF($AT$13:$AT$18,$AV13)","v":1},{"$f":"COUNTIF($AR$13:$AR$18,$AV13)","v":0},{"$f":"SUM((O$13:O$18=AV13)*(Q$13:Q$18))+SUM((P$13:P$18=AV13)*(R$13:R$18))","v":6},{"$f":"SUM((O$13:O$18=AV13)*(R$13:R$18))+SUM((P$13:P$18=AV13)*(Q$13:Q$18))","v":1},{"$f":"BA13-BB13","v":5},{"$f":"3*AX13+1*AY13","v":7},{"$f":"BD13*1000000+BC13*1000+BA13*10","v":7005060},null,{"$f":"SUMIF(O:O,AV13,AU:AU)","v":0},{"$f":"BD13*1000000+BC13*1000+BA13*10-AW13/1000+BG13*100000","v":7005059.9970000004},{"$f":"RANK(BH13,BH$13:BH$16,0)","v":1},null,{"$f":"AV$13","v":"U. St. Peter/Wimberg"},3,2,1,0,6,1,5,7,{"$f":"BH$13","v":7005059.9970000004},{"$f":"RANK(BT13,BT$13:BT$16,0)","v":1}]
[null,{"$f":"IF(C14=\"\",\"\",RANK(BT13,BT$13:BT$18,0))","v":1},{"$f":"IF(SUM(D$14:D$18)=0,Einteilung!B13,BK13)","v":"U. St. Peter/Wimberg"},{"$f":"BL13","v":3},2,1,0,6,1,5,7,null,4,{"$f":"N13+Einteilung!G$6+Einteilung!G$7","v":"14:51:00"},{"$f":"AV16","v":"U. Lembach"},{"$f":"AV15","v":"UFC Aigen/Schlägl"},0,3,"II",{"$f":"Einteilung!B$2","v":"U12 - LM"},null,null,null,null,null,null,null,null,null,null,null,null,null,null,null,null,null,null,null,null,null,null,"UFC Aigen/Schlägl","U. Lembach","","",{"$f":"IF(ISERROR(IF(VLOOKUP(O14,$AV$13:$BI$16,9,0)=VLOOKUP(P14,$AV$13:$BI$16,9,0),IF(Q14>R14,1,IF(Q14=R14,0,-1)),0)),0,IF(VLOOKUP(O14,$AV$13:$BI$16,9,0)=VLOOKUP(P14,$AV$13:$BI$16,9,0),IF(Q14>R14,1,IF(Q14=R14,0,-1)),0))","v":0},{"$f":"Einteilung!B14","v":"U. Gampern"},{"$f":"SUM(AX14:AZ14)","v":3},{"$f":"COUNTIF($AQ$13:$AQ$18,$AV14)","v":2},{"$f":"COUNTIF($AS$13:$AS$18,$AV14)+COUNTIF($AT$13:$AT$18,$AV14)","v":1},{"$f":"COUNTIF($AR$13:$AR$18,$AV14)","v":0},{"$f":"SUM((O$13:O$18=AV14)*(Q$13:Q$18))+SUM((P$13:P$18=AV14)*(R$13:R$18))","v":5},{"$f":"SUM((O$13:O$18=AV14)*(R$13:R$18))+SUM((P$13:P$18=AV14)*(Q$13:Q$18))","v":1},{"$f":"BA14-BB14","v":4},{"$f":"3*AX14+1*AY14","v":7},{"$f":"BD14*1000000+BC14*1000+BA14*10","v":7004050},null,{"$f":"SUMIF(O:O,AV14,AU:AU)","v":0},{"$f":"BD14*1000000+BC14*1000+BA14*10-AW14/1000+BG14*100000","v":7004049.9970000004},{"$f":"RANK(BH14,BH$13:BH$16,0)","v":2},null,{"$f":"AV$14","v":"U. Gampern"},3,2,1,0,5,1,4,7,{"$f":"BH$14","v":7004049.9970000004},{"$f":"RANK(BT14,BT$13:BT$16,0)","v":2}]
[null,{"$f":"IF(C15=\"\",\"\",RANK(BT14,BT$13:BT$18,0))","v":2},{"$f":"IF(SUM(D$14:D$18)=0,Einteilung!B14,BK14)","v":"U. Gampern"},{"$f":"BL14","v":3},2,1,0,5,1,4,7,null,9,{"$f":"N8+Einteilung!G$6+Einteilung!G$7","v":"15:51:00"},{"$f":"AV15","v":"UFC Aigen/Schlägl"},{"$f":"AV13","v":"U. St. Peter/Wimberg"},0,1,"II",{"$f":"Einteilung!B$2","v":"U12 - LM"},null,null,null,null,null,null,null,null,null,null,null,null,null,null,null,null,null,null,null,null,null,null,"U. St. Peter/Wimberg","UFC Aigen/Schlägl","","",0,{"$f":"Einteilung!B15","v":"UFC Aigen/Schlägl"},3,{"$f":"COUNTIF($AQ$13:$AQ$18,$AV15)","v":1},{"$f":"COUNTIF($AS$13:$AS$18,$AV15)+COUNTIF($AT$13:$AT$18,$AV15)","v":0},{"$f":"COUNTIF($AR$13:$AR$18,$AV15)","v":2},{"$f":"SUM((O$13:O$18=AV15)*(Q$13:Q$18))+SUM((P$13:P$18=AV15)*(R$13:R$18))","v":3},{"$f":"SUM((O$13:O$18=AV15)*(R$13:R$18))+SUM((P$13:P$18=AV15)*(Q$13:Q$18))","v":4},-1,3,2999030,null,{"$f":"SUMIF(O:O,AV15,AU:AU)","v":0},{"$f":"BD15*1000000+BC15*1000+BA15*10-AW15/1000+BG15*100000","v":2999029.997},3,null,{"$f":"AV$15","v":"UFC Aigen/Schlägl"},3,1,0,2,3,4,-1,3,{"$f":"BH$15","v":2999029.997},{"$f":"RANK(BT15,BT$13:BT$16,0)","v":3}]
[null,{"$f":"IF(C16=\"\",\"\",RANK(BT15,BT$13:BT$18,0))","v":3},{"$f":"IF(SUM(D$14:D$18)=0,Einteilung!B15,BK15)","v":"UFC Aigen/Schlägl"},3,1,0,2,3,4,-1,3,null,10,{"$f":"N15+Einteilung!G$6+Einteilung!G$7","v":"16:03:00"},{"$f":"AV16","v":"U. Lembach"},{"$f":"AV14","v":"U. Gampern"},0,1,"II",{"$f":"Einteilung!B$2","v":"U12 - LM"},null,null,null,null,null,null,null,null,null,null,null,null,null,null,null,null,null,null,null,null,null,null,"U. Gampern","U. Lembach","","",0,{"$f":"Einteilung!B16","v":"U. Lembach"},3,{"$f":"COUNTIF($AQ$13:$AQ$18,$AV16)","v":0},{"$f":"COUNTIF($AS$13:$AS$18,$AV16)+COUNTIF($AT$13:$AT$18,$AV16)","v":0},{"$f":"COUNTIF($AR$13:$AR$18,$AV16)","v":3},{"$f":"SUM((O$13:O$18=AV16)*(Q$13:Q$18))+SUM((P$13:P$18=AV16)*(R$13:R$18))","v":0},{"$f":"SUM((O$13:O$18=AV16)*(R$13:R$18))+SUM((P$13:P$18=AV16)*(Q$13:Q$18))","v":8},-8,0,-8000,null,{"$f":"SUMIF(O:O,AV16,AU:AU)","v":0},-8000.0029999999997,4,null,{"$f":"AV$16","v":"U. Lembach"},3,0,0,3,0,8,-8,0,{"$f":"BH$16","v":-8000.0029999999997},{"$f":"RANK(BT16,BT$13:BT$16,0)","v":4},null,null,null,3,"Gr.","Berechnungs-\npunkte",null,3,"Gr.","Berechnungs-\npunkte"]
[null,{"$f":"IF(C17=\"\",\"\",RANK(BT16,BT$13:BT$18,0))","v":4},{"$f":"IF(SUM(D$14:D$18)=0,Einteilung!B16,BK16)","v":"U. Lembach"},3,0,0,3,0,8,-8,0,null,15,{"$f":"N10+Einteilung!G$6+Einteilung!G$7","v":"17:03:00"},{"$f":"AV13","v":"U. St. Peter/Wimberg"},{"$f":"AV16","v":"U. Lembach"},4,0,"II",{"$f":"Einteilung!B$2","v":"U12 - LM"},null,null,null,null,null,null,null,null,null,null,null,null,null,null,null,null,null,null,null,null,null,null,"U. St. Peter/Wimberg","U. Lembach","","",0,null,null,null,null,null,null,null,null,null,null,null,null,null,null,null,null,null,null,null,null,null,null,null,null,null,null,null,null,null,{"$f":"BK$23","v":"U. St. Martin/Mkr."},{"$f":"VLOOKUP(BY17,Einteilung!$B:$E,4,FALSE)","v":"III"},{"$f":"BT$23","v":4002039.997},null,{"$f":"BY$17","v":"U. St. Martin/Mkr."},{"$f":"BZ$17","v":"III"},{"$f":"VLOOKUP(CC17,AV:BI,10,FALSE)","v":4002040}]
[null,{"$f":"IF(AND(SUM(B14:B17)<>10,SUM(D14:D17)=12),\"ACHTUNG Gleichstand --> Penaltyschießen erforderlich !!!\",\"\")","v":""},null,null,null,null,null,null,null,null,null,null,16,{"$f":"N17+Einteilung!G$6+Einteilung!G$7","v":"17:15:00"},{"$f":"AV14","v":"U. Gampern"},{"$f":"AV15","v":"UFC Aigen/Schlägl"},3,0,"II",{"$f":"Einteilung!B$2","v":"U12 - LM"},null,null,null,null,null,null,null,null,null,null,null,null,null,null,null,null,null,null,null,null,null,null,"U. Gampern","UFC Aigen/Schlägl","","",0,null,2,3,4,5,6,7,8,9,10,null,null,null,null,null,null,null,null,null,null,null,null,null,null,null,null,null,null,null,{"$f":"BK$15","v":"UFC Aigen/Schlägl"},{"$f":"VLOOKUP(BY18,Einteilung!$B:$E,4,FALSE)","v":"II"},{"$f":"BT$15","v":2999029.997},null,{"$f":"BY$18","v":"UFC Aigen/Schlägl"},{"$f":"BZ$18","v":"II"},{"$f":"VLOOKUP(CC18,AV:BI,10,FALSE)","v":2999030}]
[null,null,null,null,null,null,null,null,null,null,null,null,null,null,null,null,null,null,null,null,null,null,null,null,null,null,null,null,null,null,null,null,null,null,null,null,null,null,null,null,null,null,null,null,null,null,null,null,null,null,null,null,null,null,null,null,null,null,null,null,null,null,null,null,null,null,null,null,null,null,null,null,null,null,null,null,{"$f":"BK$7","v":"U. Pichling"},{"$f":"VLOOKUP(BY19,Einteilung!$B:$E,4,FALSE)","v":"I"},{"$f":"BT$7","v":2998039.997},null,{"$f":"BY$19","v":"U. Pichling"},{"$f":"BZ$19","v":"I"},{"$f":"VLOOKUP(CC19,AV:BI,10,FALSE)","v":2998040}]
[null,"GRUPPE III",null,null,null,null,null,null,null,null,null,null,"Rd.","Zeit","Ergebnisse GRUPPE III",null,null,null,null,null,null,null,null,null,null,null,null,null,null,null,null,null,null,null,null,null,null,null,null,null,null,"III","Sieger","Verlierer","Remis","Remis","HT","Team","Spiele","S","U","N","+","-","Tordiff.","Punkte","Berechnung","Rang","Hilfswert","Berechnung NEU","Rang",null,"Team","Spiele","S","U","N","+","-","Tordiff.","Punkte","Berechnung","Rang"]
[null,"Rg.","Team","Sp.","S","U","N","+","-","Tord.","Pkt.",null,5,{"$f":"N14+Einteilung!G$6+Einteilung!G$7","v":"15:03:00"},{"$f":"AV21","v":"U. St. Martin/Mkr."},{"$f":"AV22","v":"SPG Putzleinsdorf/Hofkirchen"},4,1,"III",{"$f":"Einteilung!B$2","v":"U12 - LM"},null,null,null,null,null,null,null,null,null,null,null,null,null,null,null,null,null,null,null,null,null,null,{"$f":"IF(AND(Q21=\"\",R21=\"\"),\"\",IF(Q21=R21,\"\",IF(Q21>R21,O21,P21)))","v":"U. St. Martin/Mkr."},{"$f":"IF(AND(Q21=\"\",R21=\"\"),\"\",IF(Q21=R21,\"\",IF(Q21>R21,P21,O21)))","v":"SPG Putzleinsdorf/Hofkirchen"},{"$f":"IF(AND(Q21=\"\",R21=\"\"),\"\",IF(Q21=R21,O21,\"\"))","v":""},{"$f":"IF(AND(Q21=\"\",R21=\"\"),\"\",IF(Q21=R21,P21,\"\"))","v":""},{"$f":"IF(ISERROR(IF(VLOOKUP(O21,$AV$21:$BI$24,9,0)=VLOOKUP(P21,$AV$21:$BI$24,9,0),IF(Q21>R21,1,IF(Q21=R21,0,-1)),0)),0,IF(VLOOKUP(O21,$AV$21:$BI$24,9,0)=VLOOKUP(P21,$AV$21:$BI$24,9,0),IF(Q21>R21,1,IF(Q21=R21,0,-1)),0))","v":0},{"$f":"Einteilung!B20","v":"U. St. Martin/Mkr."},{"$f":"SUM(AX21:AZ21)","v":3},{"$f":"COUNTIF($AQ$21:$AQ$26,$AV21)","v":1},{"$f":"COUNTIF($AS$21:$AS$26,$AV21)+COUNTIF($AT$21:$AT$26,$AV21)","v":1},{"$f":"COUNTIF($AR$21:$AR$26,$AV21)","v":1},{"$f":"SUM((O$21:O$26=AV21)*(Q$21:Q$26))+SUM((P$21:P$26=AV21)*(R$21:R$26))","v":4},{"$f":"SUM((O$21:O$26=AV21)*(R$21:R$26))+SUM((P$21:P$26=AV21)*(Q$21:Q$26))","v":2},{"$f":"BA21-BB21","v":2},{"$f":"3*AX21+1*AY21","v":4},{"$f":"BD21*1000000+BC21*1000+BA21*10","v":4002040},null,{"$f":"SUMIF(O:O,AV21,AU:AU)","v":0},{"$f":"BD21*1000000+BC21*1000+BA21*10-AW21/1000+BG21*100000","v":4002039.997},{"$f":"RANK(BH21,BH$21:BH$24,0)","v":3},null,{"$f":"AV$23","v":"SPG Julbach/Ulrichsb./Klaffer"},3,2,1,0,7,1,6,7,{"$f":"BH$23","v":7006069.9970000004},{"$f":"RANK(BT21,BT$21:BT$24,0)","v":1},null,null,null,4,"Gr.","Berechnungs-\npunkte",null,4,"Gr.","Berechnungs-\npunkte"]
[null,{"$f":"IF(C22=\"\",\"\",RANK(BT21,BT$21:BT$26,0))","v":1},{"$f":"IF(SUM(D$22:D$28)=0,Einteilung!B20,BK21)","v":"SPG Julbach/Ulrichsb./Klaffer"},{"$f":"BL21","v":3},2,1,0,7,1,6,7,null,6,{"$f":"N21+Einteilung!G$6+Einteilung!G$7","v":"15:15:00"},{"$f":"AV24","v":"U. Ried/Riedmark"},{"$f":"AV23","v":"SPG Julbach/Ulrichsb./Klaffer"},1,1,"III",{"$f":"Einteilung!B$2","v":"U12 - LM"},null,null,null,null,null,null,null,null,null,null,null,null,null,null,null,null,null,null,null,null,null,null,"","","U. Ried/Riedmark","SPG Julbach/Ulrichsb./Klaffer",{"$f":"IF(ISERROR(IF(VLOOKUP(O22,$AV$21:$BI$24,9,0)=VLOOKUP(P22,$AV$21:$BI$24,9,0),IF(Q22>R22,1,IF(Q22=R22,0,-1)),0)),0,IF(VLOOKUP(O22,$AV$21:$BI$24,9,0)=VLOOKUP(P22,$AV$21:$BI$24,9,0),IF(Q22>R22,1,IF(Q22=R22,0,-1)),0))","v":0},{"$f":"Einteilung!B21","v":"SPG Putzleinsdorf/Hofkirchen"},{"$f":"SUM(AX22:AZ22)","v":3},{"$f":"COUNTIF($AQ$21:$AQ$26,$AV22)","v":0},{"$f":"COUNTIF($AS$21:$AS$26,$AV22)+COUNTIF($AT$21:$AT$26,$AV22)","v":0},{"$f":"COUNTIF($AR$21:$AR$26,$AV22)","v":3},{"$f":"SUM((O$21:O$26=AV22)*(Q$21:Q$26))+SUM((P$21:P$26=AV22)*(R$21:R$26))","v":1},{"$f":"SUM((O$21:O$26=AV22)*(R$21:R$26))+SUM((P$21:P$26=AV22)*(Q$21:Q$26))","v":17},{"$f":"BA22-BB22","v":-16},{"$f":"3*AX22+1*AY22","v":0},{"$f":"BD22*1000000+BC22*1000+BA22*10","v":-15990},null,{"$f":"SUMIF(O:O,AV22,AU:AU)","v":0},{"$f":"BD22*1000000+BC22*1000+BA22*10-AW22/1000+BG22*100000","v":-15990.003000000001},{"$f":"RANK(BH22,BH$21:BH$24,0)","v":4},null,{"$f":"AV$24","v":"U. Ried/Riedmark"},3,1,2,0,9,1,8,5,{"$f":"BH$24","v":5008089.9970000004},{"$f":"RANK(BT22,BT$21:BT$24,0)","v":2},null,null,null,{"$f":"BK$16","v":"U. Lembach"},{"$f":"VLOOKUP(BY22,Einteilung!$B:$E,4,FALSE)","v":"II"},{"$f":"BT$16","v":-8000.0029999999997},null,{"$f":"BY$22","v":"U. Lembach"},{"$f":"BZ$22","v":"II"},{"$f":"VLOOKUP(CC22,AV:BI,10,FALSE)","v":-8000}]
[null,{"$f":"IF(C23=\"\",\"\",RANK(BT22,BT$21:BT$26,0))","v":2},{"$f":"IF(SUM(D$22:D$28)=0,Einteilung!B21,BK22)","v":"U. Ried/Riedmark"},3,1,2,0,9,1,8,5,null,11,{"$f":"N16+Einteilung!G$6+Einteilung!G$7","v":"16:15:00"},{"$f":"AV23","v":"SPG Julbach/Ulrichsb./Klaffer"},{"$f":"AV21","v":"U. St. Martin/Mkr."},1,0,"III",{"$f":"Einteilung!B$2","v":"U12 - LM"},null,null,null,null,null,null,null,null,null,null,null,null,null,null,null,null,null,null,null,null,null,null,"SPG Julbach/Ulrichsb./Klaffer","U. St. Martin/Mkr.","","",0,{"$f":"Einteilung!B22","v":"SPG Julbach/Ulrichsb./Klaffer"},3,{"$f":"COUNTIF($AQ$21:$AQ$26,$AV23)","v":2},{"$f":"COUNTIF($AS$21:$AS$26,$AV23)+COUNTIF($AT$21:$AT$26,$AV23)","v":1},{"$f":"COUNTIF($AR$21:$AR$26,$AV23)","v":0},{"$f":"SUM((O$21:O$26=AV23)*(Q$21:Q$26))+SUM((P$21:P$26=AV23)*(R$21:R$26))","v":7},{"$f":"SUM((O$21:O$26=AV23)*(R$21:R$26))+SUM((P$21:P$26=AV23)*(Q$21:Q$26))","v":1},6,7,7006070,null,{"$f":"SUMIF(O:O,AV23,AU:AU)","v":0},7006069.9970000004,1,null,{"$f":"AV$21","v":"U. St. Martin/Mkr."},3,1,1,1,4,2,2,4,{"$f":"BH$21","v":4002039.997},{"$f":"RANK(BT23,BT$21:BT$24,0)","v":3},null,null,null,{"$f":"BK$8","v":"U. Altenfelden"},{"$f":"VLOOKUP(BY23,Einteilung!$B:$E,4,FALSE)","v":"I"},{"$f":"BT$8","v":-13000.003000000001},null,{"$f":"BY$23","v":"U. Altenfelden"},{"$f":"BZ$23","v":"I"},{"$f":"VLOOKUP(CC23,AV:BI,10,FALSE)","v":-13000}]
[null,{"$f":"IF(C24=\"\",\"\",RANK(BT23,BT$21:BT$26,0))","v":3},{"$f":"IF(SUM(D$22:D$28)=0,Einteilung!B22,BK23)","v":"U. St. Martin/Mkr."},3,1,1,1,4,2,2,4,null,12,{"$f":"N23+Einteilung!G$6+Einteilung!G$7","v":"16:27:00"},{"$f":"AV24","v":"U. Ried/Riedmark"},{"$f":"AV22","v":"SPG Putzleinsdorf/Hofkirchen"},8,0,"III",{"$f":"Einteilung!B$2","v":"U12 - LM"},null,null,null,null,null,null,null,null,null,null,null,null,null,null,null,null,null,null,null,null,null,null,"U. Ried/Riedmark","SPG Putzleinsdorf/Hofkirchen","","",0,{"$f":"Einteilung!B23","v":"U. Ried/Riedmark"},{"$f":"SUM(AX24:AZ24)","v":3},{"$f":"COUNTIF($AQ$21:$AQ$26,$AV24)","v":1},{"$f":"COUNTIF($AS$21:$AS$26,$AV24)+COUNTIF($AT$21:$AT$26,$AV24)","v":2},{"$f":"COUNTIF($AR$21:$AR$26,$AV24)","v":0},{"$f":"SUM((O$21:O$26=AV24)*(Q$21:Q$26))+SUM((P$21:P$26=AV24)*(R$21:R$26))","v":9},{"$f":"SUM((O$21:O$26=AV24)*(R$21:R$26))+SUM((P$21:P$26=AV24)*(Q$21:Q$26))","v":1},{"$f":"BA24-BB24","v":8},{"$f":"3*AX24+1*AY24","v":5},5008090,null,{"$f":"SUMIF(O:O,AV24,AU:AU)","v":0},5008089.9970000004,2,null,{"$f":"AV$22","v":"SPG Putzleinsdorf/Hofkirchen"},3,0,0,3,1,17,-16,0,{"$f":"BH$22","v":-15990.003000000001},{"$f":"RANK(BT24,BT$21:BT$24,0)","v":4},null,null,null,{"$f":"BK$24","v":"SPG Putzleinsdorf/Hofkirchen"},{"$f":"VLOOKUP(BY24,Einteilung!$B:$E,4,FALSE)","v":"III"},{"$f":"BT$24","v":-15990.003000000001},null,{"$f":"BY$24","v":"SPG Putzleinsdorf/Hofkirchen"},{"$f":"BZ$24","v":"III"},{"$f":"VLOOKUP(CC24,AV:BI,10,FALSE)","v":-15990}]
[null,{"$f":"IF(C25=\"\",\"\",RANK(BT24,BT$21:BT$26,0))","v":4},{"$f":"IF(SUM(D$22:D$28)=0,Einteilung!B23,BK24)","v":"SPG Putzleinsdorf/Hofkirchen"},3,0,0,3,1,17,-16,0,null,17,{"$f":"N18+Einteilung!G$6+Einteilung!G$7","v":"17:27:00"},{"$f":"AV21","v":"U. St. Martin/Mkr."},{"$f":"AV24","v":"U. Ried/Riedmark"},0,0,"III",{"$f":"Einteilung!B$2","v":"U12 - LM"},null,null,null,null,null,null,null,null,null,null,null,null,null,null,null,null,null,null,null,null,null,null,"","","U. St. Martin/Mkr.","U. Ried/Riedmark",0]
[null,{"$f":"IF(AND(SUM(B22:B25)<>10,SUM(D22:D25)=12),\"ACHTUNG Gleichstand --> Penaltyschießen erforderlich !!!\",\"\")","v":""},null,null,null,null,null,null,null,null,null,null,18,{"$f":"N25+Einteilung!G$6+Einteilung!G$7","v":"17:39:00"},{"$f":"AV22","v":"SPG Putzleinsdorf/Hofkirchen"},{"$f":"AV23","v":"SPG Julbach/Ulrichsb./Klaffer"},0,5,"III",{"$f":"Einteilung!B$2","v":"U12 - LM"},null,null,null,null,null,null,null,null,null,null,null,null,null,null,null,null,null,null,null,null,null,null,"SPG Julbach/Ulrichsb./Klaffer","SPG Putzleinsdorf/Hofkirchen","","",0,null,2,3,4,5,6,7,8,9,10]

{"sheet":"Play-off","index":2,"n_rows":29,"n_cols":31,"rows_kept":29,"cut":false,"hidden":false,"merged":[[23,1,23,7],[14,1,14,7],[3,17,3,20],[5,10,6,10],[14,10,15,10],[18,10,19,10],[22,15,28,15],[13,15,19,15],[12,17,12,20],[14,17,15,17],[16,17,16,20],[25,17,25,20],[27,17,28,17],[23,10,24,10],[27,10,28,10],[23,17,24,17],[18,17,19,17],[20,17,20,20],[0,29,0,30],[4,15,10,15],[2,1,2,7],[5,1,5,7],[9,10,10,10],[9,17,10,17],[5,17,6,17],[7,17,7,20],[0,1,0,20],[2,10,2,13],[2,17,2,20]]}
[null,{"$f":"Einteilung!B2","v":"U12 - LM"},null,null,null,null,null,null,null,null,null,null,null,null,null,null,null,null,null,null,null,null,null,null,null,null,null,null,null,"Ergebnis U12"]
[]
[null,"U12 Vorrunde Gruppenspiele",null,null,null,null,null,null,null,null,"U12 Halbfinale (HF 1-6)",null,null,null,null,null,null,"U12 Final- & Platzierungsspiele"]
[]
[null,null,null,null,null,null,null,null,null,null,"HF 1:    Bester Grp.-Vierter - 2. bester Grp.-Vierter",null,null,null,null,"Ränge 9-12",null,"Spiel um Rg. 11: Verlierer HF 1- Verlierer HF 2"]
[null,"GRUPPE I",null,null,null,null,null,null,null,null,{"$f":"'Vorrunde Gruppenspiele'!N26+Einteilung!G$6+3*Einteilung!G$7","v":"17:55:00"},{"$f":"IF(SUM(D$8:D$30)<36,\"\",'Vorrunde Gruppenspiele'!BY22)","v":"U. Lembach"},1,null,null,null,null,{"$f":"K28+Einteilung!G$6+2*Einteilung!G$7","v":"19:15:00"},{"$f":"IF(M6=\"\",\"\",IF(M6>M7,L7,IF(M6<M7,L6,IF(M6=M7,IF(N6>N7,L7,IF(N6<N7,L6,\"Penalty !!!!!\"))))))","v":"U. Lembach"},2,null,null,null,null,null,null,null,null,null,12,{"$f":"IF(T6=\"\",\"\",IF(T6>T7,S7,IF(T6<T7,S6,IF(T6=T7,IF(U6>U7,S7,IF(U6<U7,S6,\"Penalty !!!!!\"))))))","v":"SPG Putzleinsdorf/Hofkirchen"}]
[null,"Rg.","Team","Sp.","+","-","Tord.","Pkt.",null,null,null,{"$f":"IF(SUM(D$8:D$30)<36,\"\",'Vorrunde Gruppenspiele'!BY23)","v":"U. Altenfelden"},4,null,null,null,null,null,{"$f":"IF(M10=\"\",\"\",IF(M10>M11,L11,IF(M10<M11,L10,IF(M10=M11,IF(N10>N11,L11,IF(N10<N11,L10,\"Penalty !!!!!\"))))))","v":"SPG Putzleinsdorf/Hofkirchen"},0,null,null,null,null,null,null,null,null,null,11,{"$f":"IF(T6=\"\",\"\",IF(T6>T7,S6,IF(T6<T7,S7,IF(T6=T7,IF(U6>U7,S6,IF(U6<U7,S7,\"Penalty !!!!!\"))))))","v":"U. Lembach"}]
[null,1,{"$f":"'Vorrunde Gruppenspiele'!C6","v":"UFC Rohrbach-Berg"},{"$f":"'Vorrunde Gruppenspiele'!D6","v":3},{"$f":"'Vorrunde Gruppenspiele'!H6","v":12},{"$f":"'Vorrunde Gruppenspiele'!I6","v":0},{"$f":"'Vorrunde Gruppenspiele'!J6","v":12},{"$f":"'Vorrunde Gruppenspiele'!K6","v":9},{"$f":"B8","v":1}]
[null,2,{"$f":"'Vorrunde Gruppenspiele'!C7","v":"U. Walding/Rottenegg"},{"$f":"'Vorrunde Gruppenspiele'!D7","v":3},{"$f":"'Vorrunde Gruppenspiele'!H7","v":7},{"$f":"'Vorrunde Gruppenspiele'!I7","v":4},{"$f":"'Vorrunde Gruppenspiele'!J7","v":3},{"$f":"'Vorrunde Gruppenspiele'!K7","v":6},{"$f":"B9","v":2},null,"HF 2 :    3. bester Grp.-Dritter - 3. bester Grp.-Vierter",null,null,null,null,null,null,"Spiel um Rg. 9: Sieger HF 1- Sieger HF 2"]
[null,3,{"$f":"'Vorrunde Gruppenspiele'!C8","v":"U. Pichling"},{"$f":"'Vorrunde Gruppenspiele'!D8","v":3},{"$f":"'Vorrunde Gruppenspiele'!H8","v":4},{"$f":"'Vorrunde Gruppenspiele'!I8","v":6},{"$f":"'Vorrunde Gruppenspiele'!J8","v":-2},{"$f":"'Vorrunde Gruppenspiele'!K8","v":3},3,null,{"$f":"K6+Einteilung!G$6+2*Einteilung!G$7","v":"18:09:00"},{"$f":"IF(SUM(D$8:D$30)<36,\"\",'Vorrunde Gruppenspiele'!BY19)","v":"U. Pichling"},6,null,null,null,null,{"$f":"R6+Einteilung!G$6+Einteilung!G$7","v":"19:27:00"},{"$f":"IF(M6=\"\",\"\",IF(M6>M7,L6,IF(M6<M7,L7,IF(M6=M7,IF(N6>N7,L6,IF(N6<N7,L7,\"Penalty !!!!!\"))))))","v":"U. Altenfelden"},0,null,null,null,null,null,null,null,null,null,10,{"$f":"IF(T10=\"\",\"\",IF(T10>T11,S11,IF(T10<T11,S10,IF(T10=T11,IF(U10>U11,S11,IF(U10<U11,S10,\"Penalty !!!!!\"))))))","v":"U. Altenfelden"}]
[null,4,{"$f":"'Vorrunde Gruppenspiele'!C9","v":"U. Altenfelden"},{"$f":"'Vorrunde Gruppenspiele'!D9","v":3},{"$f":"'Vorrunde Gruppenspiele'!H9","v":0},{"$f":"'Vorrunde Gruppenspiele'!I9","v":13},{"$f":"'Vorrunde Gruppenspiele'!J9","v":-13},{"$f":"'Vorrunde Gruppenspiele'!K9","v":0},4,null,null,{"$f":"IF(SUM(D$8:D$30)<36,\"\",'Vorrunde Gruppenspiele'!BY24)","v":"SPG Putzleinsdorf/Hofkirchen"},0,null,null,null,null,null,{"$f":"IF(M10=\"\",\"\",IF(M10>M11,L10,IF(M10<M11,L11,IF(M10=M11,IF(N10>N11,L10,IF(N10<N11,L11,\"Penalty !!!!!\"))))))","v":"U. Pichling"},1,null,null,null,null,null,null,null,null,null,9,{"$f":"IF(T10=\"\",\"\",IF(T10>T11,S10,IF(T10<T11,S11,IF(T10=T11,IF(U10>U11,S10,IF(U10<U11,S11,\"Penalty !!!!!\"))))))","v":"U. Pichling"}]
[]
[]
[null,null,null,null,null,null,null,null,null,null,"HF 3:    3. bester Grp.-Zweiter  - Bester Grp.-Dritter",null,null,null,null,"Ränge 5-8",null,"Spiel um Rg. 7: Verlierer HF 3- Verlierer HF 4"]
[null,"GRUPPE II",null,null,null,null,null,null,null,null,{"$f":"K10+Einteilung!G$6+Einteilung!G$7","v":"18:21:00"},{"$f":"IF(SUM(D$8:D$30)<36,\"\",'Vorrunde Gruppenspiele'!BY12)","v":"U. Ried/Riedmark"},0,null,null,null,null,{"$f":"R10+Einteilung!G$6+2*Einteilung!G$7","v":"19:41:00"},{"$f":"IF(M15=\"\",\"\",IF(M15>M16,L16,IF(M15<M16,L15,IF(M15=M16,IF(N15>N16,L16,IF(N15<N16,L15,\"Penalty !!!!!\"))))))","v":"U. Ried/Riedmark"},1,2,null,null,null,null,null,null,null,null,8,{"$f":"IF(T15=\"\",\"\",IF(T15>T16,S16,IF(T15<T16,S15,IF(T15=T16,IF(U15>U16,S16,IF(U15<U16,S15,\"Penalty !!!!!\"))))))","v":"U. Ried/Riedmark"}]
[null,"Rg.","Team","Sp.","+","-","Tord.","Pkt.",{"$f":"B17","v":1},null,null,{"$f":"IF(SUM(D$8:D$30)<36,\"\",'Vorrunde Gruppenspiele'!BY17)","v":"U. St. Martin/Mkr."},2,null,null,null,null,null,{"$f":"IF(M19=\"\",\"\",IF(M19>M20,L20,IF(M19<M20,L19,IF(M19=M20,IF(N19>N20,L20,IF(N19<N20,L19,\"Penalty !!!!!\"))))))","v":"UFC Aigen/Schlägl"},1,3,null,null,null,null,null,null,null,null,7,{"$f":"IF(T15=\"\",\"\",IF(T15>T16,S15,IF(T15<T16,S16,IF(T15=T16,IF(U15>U16,S15,IF(U15<U16,S16,\"Penalty !!!!!\"))))))","v":"UFC Aigen/Schlägl"}]
[null,1,{"$f":"'Vorrunde Gruppenspiele'!C14","v":"U. St. Peter/Wimberg"},{"$f":"'Vorrunde Gruppenspiele'!D14","v":3},{"$f":"'Vorrunde Gruppenspiele'!H14","v":6},{"$f":"'Vorrunde Gruppenspiele'!I14","v":1},{"$f":"'Vorrunde Gruppenspiele'!J14","v":5},{"$f":"'Vorrunde Gruppenspiele'!K14","v":7},{"$f":"B17","v":1}]
[null,2,{"$f":"'Vorrunde Gruppenspiele'!C15","v":"U. Gampern"},{"$f":"'Vorrunde Gruppenspiele'!D15","v":3},{"$f":"'Vorrunde Gruppenspiele'!H15","v":5},{"$f":"'Vorrunde Gruppenspiele'!I15","v":1},{"$f":"'Vorrunde Gruppenspiele'!J15","v":4},{"$f":"'Vorrunde Gruppenspiele'!K15","v":7},{"$f":"B18","v":2},null,"HF 4:    2. bester Grp.-Zweiter - 2. bester Grp.-Dritter",null,null,null,null,null,null,"Spiel um Rg. 5: Sieger HF 3- Sieger HF 4"]
[null,3,{"$f":"'Vorrunde Gruppenspiele'!C16","v":"UFC Aigen/Schlägl"},{"$f":"'Vorrunde Gruppenspiele'!D16","v":3},{"$f":"'Vorrunde Gruppenspiele'!H16","v":3},{"$f":"'Vorrunde Gruppenspiele'!I16","v":4},{"$f":"'Vorrunde Gruppenspiele'!J16","v":-1},{"$f":"'Vorrunde Gruppenspiele'!K16","v":3},3,null,{"$f":"K15+Einteilung!G$6+2*Einteilung!G$7","v":"18:35:00"},{"$f":"IF(SUM(D$8:D$30)<36,\"\",'Vorrunde Gruppenspiele'!BY11)","v":"U. Walding/Rottenegg"},0,3,null,null,null,{"$f":"R15+Einteilung!G$6+Einteilung!G$7","v":"19:53:00"},{"$f":"IF(M15=\"\",\"\",IF(M15>M16,L15,IF(M15<M16,L16,IF(M15=M16,IF(N15>N16,L15,IF(N15<N16,L16,\"Penalty !!!!!\"))))))","v":"U. St. Martin/Mkr."},1,null,null,null,null,null,null,null,null,null,6,{"$f":"IF(T19=\"\",\"\",IF(T19>T20,S20,IF(T19<T20,S19,IF(T19=T20,IF(U19>U20,S20,IF(U19<U20,S19,\"Penalty !!!!!\"))))))","v":"U. St. Martin/Mkr."}]
[null,4,{"$f":"'Vorrunde Gruppenspiele'!C17","v":"U. Lembach"},{"$f":"'Vorrunde Gruppenspiele'!D17","v":3},{"$f":"'Vorrunde Gruppenspiele'!H17","v":0},{"$f":"'Vorrunde Gruppenspiele'!I17","v":8},{"$f":"'Vorrunde Gruppenspiele'!J17","v":-8},{"$f":"'Vorrunde Gruppenspiele'!K17","v":0},4,null,null,{"$f":"IF(SUM(D$8:D$30)<36,\"\",'Vorrunde Gruppenspiele'!BY18)","v":"UFC Aigen/Schlägl"},0,2,null,null,null,null,{"$f":"IF(M19=\"\",\"\",IF(M19>M20,L19,IF(M19<M20,L20,IF(M19=M20,IF(N19>N20,L19,IF(N19<N20,L20,\"Penalty !!!!!\"))))))","v":"U. Walding/Rottenegg"},4,null,null,null,null,null,null,null,null,null,5,{"$f":"IF(T19=\"\",\"\",IF(T19>T20,S19,IF(T19<T20,S20,IF(T19=T20,IF(U19>U20,S19,IF(U19<U20,S20,\"Penalty !!!!!\"))))))","v":"U. Walding/Rottenegg"}]
[]
[]
[null,null,null,null,null,null,null,null,null,null,"HF 5:    Bester Grp.-Sieger - Bester Grp.-Zweiter",null,null,null,null,"Ränge 1-4",null,"Spiel um Rg. 3: Verlierer HF 5 - Verlierer HF 6"]
[null,"GRUPPE III",null,null,null,null,null,null,{"$f":"B26","v":1},null,{"$f":"K19+Einteilung!G$6+Einteilung!G$7","v":"18:47:00"},{"$f":"IF(SUM(D$8:D$30)<36,\"\",'Vorrunde Gruppenspiele'!BY5)","v":"UFC Rohrbach-Berg"},6,null,null,null,null,{"$f":"R19+Einteilung!G$6+2*Einteilung!G$7","v":"20:07:00"},{"$f":"IF(M24=\"\",\"\",IF(M24>M25,L25,IF(M24<M25,L24,IF(M24=M25,IF(N24>N25,L25,IF(N24<N25,L24,\"Penalty !!!!!\"))))))","v":"U. Gampern"},1,3,null,null,null,null,null,null,null,null,4,{"$f":"IF(T24=\"\",\"\",IF(T24>T25,S25,IF(T24<T25,S24,IF(T24=T25,IF(U24>U25,S25,IF(U24<U25,S24,\"Penalty !!!!!\"))))))","v":"SPG Julbach/Ulrichsb./Klaffer"}]
[null,"Rg.","Team","Sp.","+","-","Tord.","Pkt.",{"$f":"B27","v":2},null,null,{"$f":"IF(SUM(D$8:D$30)<36,\"\",'Vorrunde Gruppenspiele'!BY10)","v":"U. Gampern"},0,null,null,null,null,null,{"$f":"IF(M28=\"\",\"\",IF(M28>M29,L29,IF(M28<M29,L28,IF(M28=M29,IF(N28>N29,L29,IF(N28<N29,L28,\"Penalty !!!!!\"))))))","v":"SPG Julbach/Ulrichsb./Klaffer"},1,1,null,null,null,null,null,null,null,null,3,{"$f":"IF(T24=\"\",\"\",IF(T24>T25,S24,IF(T24<T25,S25,IF(T24=T25,IF(U24>U25,S24,IF(U24<U25,S25,\"Penalty !!!!!\"))))))","v":"U. Gampern"}]
[null,1,{"$f":"'Vorrunde Gruppenspiele'!C22","v":"SPG Julbach/Ulrichsb./Klaffer"},{"$f":"'Vorrunde Gruppenspiele'!D22","v":3},{"$f":"'Vorrunde Gruppenspiele'!H22","v":7},{"$f":"'Vorrunde Gruppenspiele'!I22","v":1},{"$f":"'Vorrunde Gruppenspiele'!J22","v":6},{"$f":"'Vorrunde Gruppenspiele'!K22","v":7},{"$f":"B26","v":1}]
[null,2,{"$f":"'Vorrunde Gruppenspiele'!C23","v":"U. Ried/Riedmark"},{"$f":"'Vorrunde Gruppenspiele'!D23","v":3},{"$f":"'Vorrunde Gruppenspiele'!H23","v":9},{"$f":"'Vorrunde Gruppenspiele'!I23","v":1},{"$f":"'Vorrunde Gruppenspiele'!J23","v":8},{"$f":"'Vorrunde Gruppenspiele'!K23","v":5},{"$f":"B27","v":2},null,"HF 6:    2. bester Grp.-Sieger - 3. bester Grp.-Sieger",null,null,null,null,null,null,"FINALE: Sieger HF 5 - Sieger HF 6"]
[null,3,{"$f":"'Vorrunde Gruppenspiele'!C24","v":"U. St. Martin/Mkr."},{"$f":"'Vorrunde Gruppenspiele'!D24","v":3},{"$f":"'Vorrunde Gruppenspiele'!H24","v":4},{"$f":"'Vorrunde Gruppenspiele'!I24","v":2},{"$f":"'Vorrunde Gruppenspiele'!J24","v":2},{"$f":"'Vorrunde Gruppenspiele'!K24","v":4},3,null,{"$f":"K24+Einteilung!G$6+2*Einteilung!G$7","v":"19:01:00"},{"$f":"IF(SUM(D$8:D$30)<36,\"\",'Vorrunde Gruppenspiele'!BY6)","v":"SPG Julbach/Ulrichsb./Klaffer"},3,null,null,null,null,{"$f":"R24+Einteilung!G$6+1.5*Einteilung!G$7","v":"20:20:00"},{"$f":"IF(M24=\"\",\"\",IF(M24>M25,L24,IF(M24<M25,L25,IF(M24=M25,IF(N24>N25,L24,IF(N24<N25,Y,\"Penalty !!!!!\"))))))","v":"UFC Rohrbach-Berg"},3,null,null,null,null,null,null,null,null,null,2,{"$f":"IF(T28=\"\",\"\",IF(T28>T29,S29,IF(T28<T29,S28,IF(T28=T29,IF(U28>U29,S29,IF(U28<U29,S28,\"Penalty !!!!!\"))))))","v":"U. St. Peter/Wimberg"}]
[null,4,{"$f":"'Vorrunde Gruppenspiele'!C25","v":"SPG Putzleinsdorf/Hofkirchen"},{"$f":"'Vorrunde Gruppenspiele'!D25","v":3},{"$f":"'Vorrunde Gruppenspiele'!H25","v":1},{"$f":"'Vorrunde Gruppenspiele'!I25","v":17},{"$f":"'Vorrunde Gruppenspiele'!J25","v":-16},{"$f":"'Vorrunde Gruppenspiele'!K25","v":0},4,null,null,{"$f":"IF(SUM(D$8:D$30)<36,\"\",'Vorrunde Gruppenspiele'!BY7)","v":"U. St. Peter/Wimberg"},4,null,null,null,null,null,{"$f":"IF(M28=\"\",\"\",IF(M28>M29,L28,IF(M28<M29,L29,IF(M28=M29,IF(N28>N29,L28,IF(N28<N29,L29,\"Penalty !!!!!\"))))))","v":"U. St. Peter/Wimberg"},1,null,null,null,null,null,null,null,null,null,1,{"$f":"IF(T28=\"\",\"\",IF(T28>T29,S28,IF(T28<T29,S29,IF(T28=T29,IF(U28>U29,S28,IF(U28<U29,S29,\"Penalty !!!!!\"))))))","v":"UFC Rohrbach-Berg"}]

{"sheet":"Modus Play-off","index":3,"n_rows":29,"n_cols":31,"rows_kept":29,"cut":false,"hidden":false,"merged":[[20,17,20,20],[22,15,28,15],[23,1,23,7],[23,10,24,10],[23,17,24,17],[25,17,25,20],[27,10,28,10],[27,17,28,17],[12,17,12,20],[13,15,19,15],[14,1,14,7],[14,10,15,10],[14,17,15,17],[16,17,16,20],[18,10,19,10],[18,17,19,17],[4,15,10,15],[5,1,5,7],[5,10,6,10],[5,17,6,17],[7,17,7,20],[9,10,10,10],[9,17,10,17],[0,29,0,30],[2,1,2,7],[2,10,2,13],[2,17,2,20],[3,17,3,20],[0,1,0,20]]}
[null,"U12",null,null,null,null,null,null,null,null,null,null,null,null,null,null,null,null,null,null,null,null,null,null,null,null,null,null,null,"Ergebnis U12"]
[]
[null,"U12 Vorrunde Gruppenspiele",null,null,null,null,null,null,null,null,"U12 Halbfinale (HF 1-10)",null,null,null,null,null,null,"U12 Final- & Platzierungsspiele"]
[]
[null,null,null,null,null,null,null,null,null,null,"HF 1: Bester Grp.-Vierter - 2. bester Grp.-Vierter",null,null,null,null,"Ränge 9-12",null,"Spiel um Rg. 11: Verlierer HF 1- Verlierer HF 2"]
[null,"GRUPPE I",null,null,null,null,null,null,null,null,"17:55:00",null,null,null,null,null,null,"19:15:00",null,null,null,null,null,null,null,null,null,null,null,12,"U. Walding/Rottenegg"]
[null,"Rg.","Team","Sp.","+","-","Tord.","Pkt.",null,null,null,null,null,null,null,null,null,null,null,null,null,null,null,null,null,null,null,null,null,11,"U. Ried/Riedmark"]
[null,1,null,null,null,null,null,null,1]
[null,2,null,null,null,null,null,null,2,null,"HF 2 : 3. bester Grp.-Dritter - 3. bester Grp.-Vierter",null,null,null,null,null,null,"Spiel um Rg. 9: Sieger HF 1- Sieger HF 2"]
[null,3,null,null,null,null,null,null,3,null,"18:09:00",null,null,null,null,null,null,"19:27:00",null,null,null,null,null,null,null,null,null,null,null,10,"UFC Aigen/Schlägl"]
[null,4,null,null,null,null,null,null,4,null,null,null,null,null,null,null,null,null,null,null,null,null,null,null,null,null,null,null,null,9,"U. Lembach"]
[null,null,null,null,null,null,null,null,{"$error":"#REF!"}]
[]
[null,null,null,null,null,null,null,null,null,null,"HF 3: Bester Grp.-Dritter - 2. Bester Grp.-Dritter",null,null,null,null,"Ränge 5-8",null,"Spiel um Rg. 7: Verlierer HF 3- Verlierer HF 4"]
[null,"GRUPPE II",null,null,null,null,null,null,null,null,"18:21:00",null,null,null,null,null,null,"19:41:00",null,null,null,null,null,null,null,null,null,null,null,8,"U. Altenfelden"]
[null,"Rg.","Team","Sp.","+","-","Tord.","Pkt.",1,null,null,null,null,null,null,null,null,null,null,null,null,null,null,null,null,null,null,null,null,7,"U. Pichling"]
[null,1,null,null,null,null,null,null,2]
[null,2,null,null,null,null,null,null,3,null,"HF 4: 2. bester Grp.-Zweiter - 3. bester Grp.-Zweiter",null,null,null,null,null,null,"Spiel um Rg. 5: Sieger HF 3- Sieger HF 4"]
[null,3,null,null,null,null,null,null,4,null,"18:35:00",null,null,null,null,null,null,"19:53:00",null,null,null,null,null,null,null,null,null,null,null,6,"U. Gampern"]
[null,4,null,null,null,null,null,null,{"$error":"#REF!"},null,null,null,null,null,null,null,null,null,null,null,null,null,null,null,null,null,null,null,null,5,"SPG Julbach/Ulrichsb./Klaffer"]
[]
[]
[null,null,null,null,null,null,null,null,null,null,"HF 5: Bester Grp.-Sieger - Bester Grp.-Zweiter",null,null,null,null,"Ränge 1-4",null,"Spiel um Rg. 3: Verlierer HF 5 - Verlierer HF 6"]
[null,"GRUPPE III",null,null,null,null,null,null,1,null,"18:47:00",null,null,null,null,null,null,null,null,null,null,null,null,null,null,null,null,null,null,4,"SPG Putzleinsdorf/Hofkirchen"]
[null,"Rg.","Team","Sp.","+","-","Tord.","Pkt.",2,null,null,null,null,null,null,null,null,null,null,null,null,null,null,null,null,null,null,null,null,3,"U. St. Martin/Mkr."]
[null,1,null,null,null,null,null,null,3]
[null,2,null,null,null,null,null,null,4,null,"HF 6: 2. bester Grp.-Sieger - 3. bester Grp.-Sieger",null,null,null,null,null,null,"FINALE: Sieger HF 5 - Sieger HF 6"]
[null,3,null,null,null,null,null,null,0,null,"19:01:00",null,null,null,null,null,null,"20:20:00",null,null,null,null,null,null,null,null,null,null,null,2,"U. St. Peter/Wimberg"]
[null,4,null,null,null,null,null,null,null,null,null,null,null,null,null,null,null,null,null,null,null,null,null,null,null,null,null,null,null,1,"UFC Rohrbach-Berg"]

{"sheet":"Torschützen U12","index":4,"n_rows":104,"n_cols":31,"rows_kept":104,"cut":false,"hidden":false,"merged":[[0,5,0,16],[4,4,63,4],[2,23,2,26],[2,27,2,30],[2,5,2,8],[2,9,2,12],[2,13,2,16],[2,19,2,22]]}
[null,null,null,null,{"$f":"SUM(F65:Q65)","v":0},"Torschützen"]
[]
[null,null,null,null,null,"Gruppe I",null,null,null,"Gruppe II",null,null,null,"Gruppe III",null,null,null,null,null,"Gruppe I",null,null,null,"Gruppe II",null,null,null,"Gruppe III"]
["Rang","Tore","Anzahl Spieler",null,null,{"$f":"Einteilung!$B6","v":"UFC Rohrbach-Berg"},{"$f":"Einteilung!$B7","v":"U. Pichling"},{"$f":"Einteilung!$B8","v":"U. Altenfelden"},{"$f":"Einteilung!$B9","v":"U. Walding/Rottenegg"},{"$f":"Einteilung!$B13","v":"U. St. Peter/Wimberg"},{"$f":"Einteilung!$B14","v":"U. Gampern"},{"$f":"Einteilung!$B15","v":"UFC Aigen/Schlägl"},{"$f":"Einteilung!$B16","v":"U. Lembach"},{"$f":"Einteilung!$B20","v":"U. St. Martin/Mkr."},{"$f":"Einteilung!$B21","v":"SPG Putzleinsdorf/Hofkirchen"},{"$f":"Einteilung!$B22","v":"SPG Julbach/Ulrichsb./Klaffer"},{"$f":"Einteilung!$B23","v":"U. Ried/Riedmark"},null,"Rückennummer",{"$f":"F4","v":"UFC Rohrbach-Berg"},"U. Pichling","U. Altenfelden","U. Walding/Rottenegg","U. St. Peter/Wimberg","U. Gampern","UFC Aigen/Schlägl","U. Lembach","U. St. Martin/Mkr.","SPG Putzleinsdorf/Hofkirchen","SPG Julbach/Ulrichsb./Klaffer",{"$f":"Q4","v":"U. Ried/Riedmark"}]
[1,{"$f":"IF(LARGE(T$5:AE$104,A5)=0,\"\",LARGE(T$5:AE$104,A5))","v":""},{"$f":"IF(B5=\"\",\"\",COUNTIF(T$5:AE$104,B5))","v":""},null,"RÜCKENNUMMER",null,null,null,null,null,null,null,null,null,null,null,null,1,1,{"$f":"COUNTIF(F$5:F$63,$S5)","v":0},{"$f":"COUNTIF(G$5:G$63,$S5)","v":0},{"$f":"COUNTIF(H$5:H$63,$S5)","v":0},{"$f":"COUNTIF(I$5:I$63,$S5)","v":0},{"$f":"COUNTIF(J$5:J$63,$S5)","v":0},{"$f":"COUNTIF(K$5:K$63,$S5)","v":0},{"$f":"COUNTIF(L$5:L$63,$S5)","v":0},{"$f":"COUNTIF(M$5:M$63,$S5)","v":0},{"$f":"COUNTIF(N$5:N$63,$S5)","v":0},{"$f":"COUNTIF(O$5:O$63,$S5)","v":0},{"$f":"COUNTIF(P$5:P$63,$S5)","v":0},{"$f":"COUNTIF(Q$5:Q$63,$S5)","v":0}]
[{"$f":"IF(B6=\"\",\"\",A5+1)","v":""},{"$f":"IF(B5=\"\",\"\",IF(B5-1<=0,\"\",B5-1))","v":""},"",null,null,null,null,null,null,null,null,null,null,null,null,null,null,2,2,0,0,0,0,0,0,0,0,0,0,0,0]
[{"$f":"IF(B7=\"\",\"\",A6+1)","v":""},"","",null,null,null,null,null,null,null,null,null,null,null,null,null,null,3,3,0,0,0,0,0,0,0,0,0,0,0,0]
[{"$f":"IF(B8=\"\",\"\",A7+1)","v":""},"","",null,null,null,null,null,null,null,null,null,null,null,null,null,null,4,4,0,0,0,0,0,0,0,0,0,0,0,0]
["","","",null,null,null,null,null,null,null,null,null,null,null,null,null,null,5,5,0,0,0,0,0,0,0,0,0,0,0,0]
["","","",null,null,null,null,null,null,null,null,null,null,null,null,null,null,6,6,0,0,0,0,0,0,0,0,0,0,0,0]
["","","",null,null,null,null,null,null,null,null,null,null,null,null,null,null,7,7,0,0,0,0,0,0,0,0,0,0,0,0]
["","","",null,null,null,null,null,null,null,null,null,null,null,null,null,null,8,8,0,0,0,0,0,0,0,0,0,0,0,0]
["","","",null,null,null,null,null,null,null,null,null,null,null,null,null,null,9,9,0,0,0,0,0,0,0,0,0,0,0,0]
["","","",null,null,null,null,null,null,null,null,null,null,null,null,null,null,10,10,0,0,0,0,0,0,0,0,0,0,0,0]
["","","",null,null,null,null,null,null,null,null,null,null,null,null,null,null,11,11,0,0,0,0,0,0,0,0,0,0,0,0]
["","","",null,null,null,null,null,null,null,null,null,null,null,null,null,null,12,12,0,0,0,0,0,0,0,0,0,0,0,0]
["","","",null,null,null,null,null,null,null,null,null,null,null,null,null,null,13,13,0,0,0,0,0,0,0,0,0,0,0,0]
["","","",null,null,null,null,null,null,null,null,null,null,null,null,null,null,14,14,0,0,0,0,0,0,0,0,0,0,0,0]
["",{"$f":"IF(B18=\"\",\"\",IF(B18-1<=0,\"\",B18-1))","v":""},"",null,null,null,null,null,null,null,null,null,null,null,null,null,null,15,15,0,0,0,0,0,0,0,0,0,0,0,0]
["","","",null,null,null,null,null,null,null,null,null,null,null,null,null,null,16,16,0,0,0,0,0,0,0,0,0,0,0,0]
["","","",null,null,null,null,null,null,null,null,null,null,null,null,null,null,17,17,0,0,0,0,0,0,0,0,0,0,0,0]
["","","",null,null,null,null,null,null,null,null,null,null,null,null,null,null,18,18,0,0,0,0,0,0,0,0,0,0,0,0]
["","","",null,null,null,null,null,null,null,null,null,null,null,null,null,null,19,19,0,0,0,0,0,0,0,0,0,0,0,0]
["","","",null,null,null,null,null,null,null,null,null,null,null,null,null,null,20,20,0,0,0,0,0,0,0,0,0,0,0,0]
[null,null,null,null,null,null,null,null,null,null,null,null,null,null,null,null,null,21,21,0,0,0,0,0,0,0,0,0,0,0,0]
[null,null,null,null,null,null,null,null,null,null,null,null,null,null,null,null,null,22,22,0,0,0,0,0,0,0,0,0,0,0,0]
[null,null,null,null,null,null,null,null,null,null,null,null,null,null,null,null,null,23,23,0,0,0,0,0,0,0,0,0,0,0,0]
[null,null,null,null,null,null,null,null,null,null,null,null,null,null,null,null,null,24,24,0,0,0,0,0,0,0,0,0,0,0,0]
[null,null,null,null,null,null,null,null,null,null,null,null,null,null,null,null,null,25,25,0,0,0,0,0,0,0,0,0,0,0,0]
[null,null,null,null,null,null,null,null,null,null,null,null,null,null,null,null,null,26,26,0,0,0,0,0,0,0,0,0,0,0,0]
[null,null,null,null,null,null,null,null,null,null,null,null,null,null,null,null,null,27,27,0,0,0,0,0,0,0,0,0,0,0,0]
[null,null,null,null,null,null,null,null,null,null,null,null,null,null,null,null,null,28,28,0,0,0,0,0,0,0,0,0,0,0,0]
[null,null,null,null,null,null,null,null,null,null,null,null,null,null,null,null,null,29,29,0,0,0,0,0,0,0,0,0,0,0,0]
[null,null,null,null,null,null,null,null,null,null,null,null,null,null,null,null,null,30,30,0,0,0,0,0,0,0,0,0,0,0,0]
[null,null,null,null,null,null,null,null,null,null,null,null,null,null,null,null,null,31,31,0,0,0,0,0,0,0,0,0,0,0,0]
[null,null,null,null,null,null,null,null,null,null,null,null,null,null,null,null,null,32,32,0,0,0,0,0,0,0,0,0,0,0,0]
[null,null,null,null,null,null,null,null,null,null,null,null,null,null,null,null,null,33,33,{"$f":"COUNTIF(F$5:F$63,$S37)","v":0},{"$f":"COUNTIF(G$5:G$63,$S37)","v":0},{"$f":"COUNTIF(H$5:H$63,$S37)","v":0},{"$f":"COUNTIF(I$5:I$63,$S37)","v":0},{"$f":"COUNTIF(J$5:J$63,$S37)","v":0},{"$f":"COUNTIF(K$5:K$63,$S37)","v":0},{"$f":"COUNTIF(L$5:L$63,$S37)","v":0},{"$f":"COUNTIF(M$5:M$63,$S37)","v":0},{"$f":"COUNTIF(N$5:N$63,$S37)","v":0},{"$f":"COUNTIF(O$5:O$63,$S37)","v":0},{"$f":"COUNTIF(P$5:P$63,$S37)","v":0},{"$f":"COUNTIF(Q$5:Q$63,$S37)","v":0}]
[null,null,null,null,null,null,null,null,null,null,null,null,null,null,null,null,null,34,34,0,0,0,0,0,0,0,0,0,0,0,0]
[null,null,null,null,null,null,null,null,null,null,null,null,null,null,null,null,null,35,35,0,0,0,0,0,0,0,0,0,0,0,0]
[null,null,null,null,null,null,null,null,null,null,null,null,null,null,null,null,null,36,36,0,0,0,0,0,0,0,0,0,0,0,0]
[null,null,null,null,null,null,null,null,null,null,null,null,null,null,null,null,null,37,37,0,0,0,0,0,0,0,0,0,0,0,0]
[null,null,null,null,null,null,null,null,null,null,null,null,null,null,null,null,null,38,38,0,0,0,0,0,0,0,0,0,0,0,0]
[null,null,null,null,null,null,null,null,null,null,null,null,null,null,null,null,null,39,39,0,0,0,0,0,0,0,0,0,0,0,0]
[null,null,null,null,null,null,null,null,null,null,null,null,null,null,null,null,null,40,40,0,0,0,0,0,0,0,0,0,0,0,0]
[null,null,null,null,null,null,null,null,null,null,null,null,null,null,null,null,null,41,41,0,0,0,0,0,0,0,0,0,0,0,0]
[null,null,null,null,null,null,null,null,null,null,null,null,null,null,null,null,null,42,42,0,0,0,0,0,0,0,0,0,0,0,0]
[null,null,null,null,null,null,null,null,null,null,null,null,null,null,null,null,null,43,43,0,0,0,0,0,0,0,0,0,0,0,0]
[null,null,null,null,null,null,null,null,null,null,null,null,null,null,null,null,null,44,44,0,0,0,0,0,0,0,0,0,0,0,0]
[null,null,null,null,null,null,null,null,null,null,null,null,null,null,null,null,null,45,45,0,0,0,0,0,0,0,0,0,0,0,0]
[null,null,null,null,null,null,null,null,null,null,null,null,null,null,null,null,null,46,46,0,0,0,0,0,0,0,0,0,0,0,0]
[null,null,null,null,null,null,null,null,null,null,null,null,null,null,null,null,null,47,47,0,0,0,0,0,0,0,0,0,0,0,0]
[null,null,null,null,null,null,null,null,null,null,null,null,null,null,null,null,null,48,48,0,0,0,0,0,0,0,0,0,0,0,0]
[null,null,null,null,null,null,null,null,null,null,null,null,null,null,null,null,null,49,49,0,0,0,0,0,0,0,0,0,0,0,0]
[null,null,null,null,null,null,null,null,null,null,null,null,null,null,null,null,null,50,50,0,0,0,0,0,0,0,0,0,0,0,0]
[null,null,null,null,null,null,null,null,null,null,null,null,null,null,null,null,null,51,51,0,0,0,0,0,0,0,0,0,0,0,0]
[null,null,null,null,null,null,null,null,null,null,null,null,null,null,null,null,null,52,52,0,0,0,0,0,0,0,0,0,0,0,0]
[null,null,null,null,null,null,null,null,null,null,null,null,null,null,null,null,null,53,53,0,0,0,0,0,0,0,0,0,0,0,0]
[null,null,null,null,null,null,null,null,null,null,null,null,null,null,null,null,null,54,54,0,0,0,0,0,0,0,0,0,0,0,0]
[null,null,null,null,null,null,null,null,null,null,null,null,null,null,null,null,null,55,55,0,0,0,0,0,0,0,0,0,0,0,0]
[null,null,null,null,null,null,null,null,null,null,null,null,null,null,null,null,null,56,56,0,0,0,0,0,0,0,0,0,0,0,0]
[null,null,null,null,null,null,null,null,null,null,null,null,null,null,null,null,null,57,57,0,0,0,0,0,0,0,0,0,0,0,0]
[null,null,null,null,null,null,null,null,null,null,null,null,null,null,null,null,null,58,58,0,0,0,0,0,0,0,0,0,0,0,0]
[null,null,null,null,null,null,null,null,null,null,null,null,null,null,null,null,null,59,59,0,0,0,0,0,0,0,0,0,0,0,0]
[null,null,null,null,null,null,null,null,null,null,null,null,null,null,null,null,null,60,60,0,0,0,0,0,0,0,0,0,0,0,0]
[null,null,null,null,null,{"$f":"COUNTA(F5:F64)","v":0},{"$f":"COUNTA(G5:G64)","v":0},0,0,0,0,0,0,0,0,0,0,null,61,0,0,0,0,0,0,0,0,0,0,0,0]
[null,null,null,null,null,null,null,null,null,null,null,null,null,null,null,null,null,null,62,0,0,0,0,0,0,0,0,0,0,0,0]
[null,null,null,null,null,null,null,null,null,null,null,null,null,null,null,null,null,null,63,0,0,0,0,0,0,0,0,0,0,0,0]
[null,null,null,null,null,null,null,null,null,null,null,null,null,null,null,null,null,null,64,0,0,0,0,0,0,0,0,0,0,0,0]
[null,null,null,null,null,null,null,null,null,null,null,null,null,null,null,null,null,null,65,{"$f":"COUNTIF(F$5:F$63,$S69)","v":0},{"$f":"COUNTIF(G$5:G$63,$S69)","v":0},{"$f":"COUNTIF(H$5:H$63,$S69)","v":0},{"$f":"COUNTIF(I$5:I$63,$S69)","v":0},{"$f":"COUNTIF(J$5:J$63,$S69)","v":0},{"$f":"COUNTIF(K$5:K$63,$S69)","v":0},{"$f":"COUNTIF(L$5:L$63,$S69)","v":0},{"$f":"COUNTIF(M$5:M$63,$S69)","v":0},{"$f":"COUNTIF(N$5:N$63,$S69)","v":0},{"$f":"COUNTIF(O$5:O$63,$S69)","v":0},{"$f":"COUNTIF(P$5:P$63,$S69)","v":0},{"$f":"COUNTIF(Q$5:Q$63,$S69)","v":0}]
[null,null,null,null,null,null,null,null,null,null,null,null,null,null,null,null,null,null,66,0,0,0,0,0,0,0,0,0,0,0,0]
[null,null,null,null,null,null,null,null,null,null,null,null,null,null,null,null,null,null,67,0,0,0,0,0,0,0,0,0,0,0,0]
[null,null,null,null,null,null,null,null,null,null,null,null,null,null,null,null,null,null,68,0,0,0,0,0,0,0,0,0,0,0,0]
[null,null,null,null,null,null,null,null,null,null,null,null,null,null,null,null,null,null,69,0,0,0,0,0,0,0,0,0,0,0,0]
[null,null,null,null,null,null,null,null,null,null,null,null,null,null,null,null,null,null,70,0,0,0,0,0,0,0,0,0,0,0,0]
[null,null,null,null,null,null,null,null,null,null,null,null,null,null,null,null,null,null,71,0,0,0,0,0,0,0,0,0,0,0,0]
[null,null,null,null,null,null,null,null,null,null,null,null,null,null,null,null,null,null,72,0,0,0,0,0,0,0,0,0,0,0,0]
[null,null,null,null,null,null,null,null,null,null,null,null,null,null,null,null,null,null,73,0,0,0,0,0,0,0,0,0,0,0,0]
[null,null,null,null,null,null,null,null,null,null,null,null,null,null,null,null,null,null,74,0,0,0,0,0,0,0,0,0,0,0,0]
[null,null,null,null,null,null,null,null,null,null,null,null,null,null,null,null,null,null,75,0,0,0,0,0,0,0,0,0,0,0,0]
[null,null,null,null,null,null,null,null,null,null,null,null,null,null,null,null,null,null,76,0,0,0,0,0,0,0,0,0,0,0,0]
[null,null,null,null,null,null,null,null,null,null,null,null,null,null,null,null,null,null,77,0,0,0,0,0,0,0,0,0,0,0,0]
[null,null,null,null,null,null,null,null,null,null,null,null,null,null,null,null,null,null,78,0,0,0,0,0,0,0,0,0,0,0,0]
[null,null,null,null,null,null,null,null,null,null,null,null,null,null,null,null,null,null,79,0,0,0,0,0,0,0,0,0,0,0,0]
[null,null,null,null,null,null,null,null,null,null,null,null,null,null,null,null,null,null,80,0,0,0,0,0,0,0,0,0,0,0,0]
[null,null,null,null,null,null,null,null,null,null,null,null,null,null,null,null,null,null,81,0,0,0,0,0,0,0,0,0,0,0,0]
[null,null,null,null,null,null,null,null,null,null,null,null,null,null,null,null,null,null,82,0,0,0,0,0,0,0,0,0,0,0,0]
[null,null,null,null,null,null,null,null,null,null,null,null,null,null,null,null,null,null,83,0,0,0,0,0,0,0,0,0,0,0,0]
[null,null,null,null,null,null,null,null,null,null,null,null,null,null,null,null,null,null,84,0,0,0,0,0,0,0,0,0,0,0,0]
[null,null,null,null,null,null,null,null,null,null,null,null,null,null,null,null,null,null,85,0,0,0,0,0,0,0,0,0,0,0,0]
[null,null,null,null,null,null,null,null,null,null,null,null,null,null,null,null,null,null,86,0,0,0,0,0,0,0,0,0,0,0,0]
[null,null,null,null,null,null,null,null,null,null,null,null,null,null,null,null,null,null,87,0,0,0,0,0,0,0,0,0,0,0,0]
[null,null,null,null,null,null,null,null,null,null,null,null,null,null,null,null,null,null,88,0,0,0,0,0,0,0,0,0,0,0,0]
[null,null,null,null,null,null,null,null,null,null,null,null,null,null,null,null,null,null,89,0,0,0,0,0,0,0,0,0,0,0,0]
[null,null,null,null,null,null,null,null,null,null,null,null,null,null,null,null,null,null,90,0,0,0,0,0,0,0,0,0,0,0,0]
[null,null,null,null,null,null,null,null,null,null,null,null,null,null,null,null,null,null,91,0,0,0,0,0,0,0,0,0,0,0,0]
[null,null,null,null,null,null,null,null,null,null,null,null,null,null,null,null,null,null,92,0,0,0,0,0,0,0,0,0,0,0,0]
[null,null,null,null,null,null,null,null,null,null,null,null,null,null,null,null,null,null,93,0,0,0,0,0,0,0,0,0,0,0,0]
[null,null,null,null,null,null,null,null,null,null,null,null,null,null,null,null,null,null,94,0,0,0,0,0,0,0,0,0,0,0,0]
[null,null,null,null,null,null,null,null,null,null,null,null,null,null,null,null,null,null,95,0,0,0,0,0,0,0,0,0,0,0,0]
[null,null,null,null,null,null,null,null,null,null,null,null,null,null,null,null,null,null,96,0,0,0,0,0,0,0,0,0,0,0,0]
[null,null,null,null,null,null,null,null,null,null,null,null,null,null,null,null,null,null,97,0,0,0,0,0,0,0,0,0,0,0,0]
[null,null,null,null,null,null,null,null,null,null,null,null,null,null,null,null,null,null,98,0,0,0,0,0,0,0,0,0,0,0,0]
[null,null,null,null,null,null,null,null,null,null,null,null,null,null,null,null,null,null,99,0,0,0,0,0,0,0,0,0,0,0,0]
[null,null,null,null,null,null,null,null,null,null,null,null,null,null,null,null,null,null,100,0,0,0,0,0,0,0,0,0,0,0,0]

{"sheet":"Ergebnis","index":5,"n_rows":17,"n_cols":7,"rows_kept":17,"cut":false,"hidden":false,"merged":[[0,5,0,6],[2,1,2,6]]}
[null,null,null,null,null,"2025-01-04"]
[]
[null,"Ergebnisliste U12 Sportunion - Landesmeisterschaft"]
[]
[null,"Rang","Team","Final-\nspiel","Pen.","Gruppe","Rang Gr."]
[null,1,{"$f":"'Play-off'!AE29","v":"UFC Rohrbach-Berg"},{"$f":"IF(ISERROR(VLOOKUP(C6,'Play-off'!S:U,2,FALSE)),VLOOKUP(C6,'Play-off'!S:U,3,FALSE),VLOOKUP(C6,'Play-off'!S:U,2,FALSE))","v":3},{"$f":"IF(IF(ISERROR(VLOOKUP(C6,'Play-off'!$S:$U,3,FALSE)),VLOOKUP(C6,'Play-off'!$S:$U,2,FALSE),VLOOKUP(C6,'Play-off'!$S:$U,3,FALSE))=\"\",\"\",IF(ISERROR(VLOOKUP(C6,'Play-off'!$S:$U,3,FALSE)),VLOOKUP(C6,'Play-off'!$S:$U,2,FALSE),VLOOKUP(C6,'Play-off'!$S:$U,3,FALSE)))","v":""},{"$f":"IF(C6=\"\",\"\",IF(ISERROR(VLOOKUP(C6,Einteilung!B:E,4,FALSE)),VLOOKUP(C6,Einteilung!F:I,4,FALSE),VLOOKUP(C6,Einteilung!B:E,4,FALSE)))","v":"I"},{"$f":"IF(C6=\"\",\"\",VLOOKUP(C6,'Play-off'!C:K,7,FALSE))","v":1}]
[null,2,{"$f":"'Play-off'!AE28","v":"U. St. Peter/Wimberg"},{"$f":"IF(ISERROR(VLOOKUP(C7,'Play-off'!S:U,2,FALSE)),VLOOKUP(C7,'Play-off'!S:U,3,FALSE),VLOOKUP(C7,'Play-off'!S:U,2,FALSE))","v":1},{"$f":"IF(IF(ISERROR(VLOOKUP(C7,'Play-off'!$S:$U,3,FALSE)),VLOOKUP(C7,'Play-off'!$S:$U,2,FALSE),VLOOKUP(C7,'Play-off'!$S:$U,3,FALSE))=\"\",\"\",IF(ISERROR(VLOOKUP(C7,'Play-off'!$S:$U,3,FALSE)),VLOOKUP(C7,'Play-off'!$S:$U,2,FALSE),VLOOKUP(C7,'Play-off'!$S:$U,3,FALSE)))","v":""},{"$f":"IF(C7=\"\",\"\",IF(ISERROR(VLOOKUP(C7,Einteilung!B:E,4,FALSE)),VLOOKUP(C7,Einteilung!F:I,4,FALSE),VLOOKUP(C7,Einteilung!B:E,4,FALSE)))","v":"II"},{"$f":"IF(C7=\"\",\"\",VLOOKUP(C7,'Play-off'!C:K,7,FALSE))","v":1}]
[null,3,{"$f":"'Play-off'!AE25","v":"U. Gampern"},{"$f":"IF(ISERROR(VLOOKUP(C8,'Play-off'!S:U,2,FALSE)),VLOOKUP(C8,'Play-off'!S:U,3,FALSE),VLOOKUP(C8,'Play-off'!S:U,2,FALSE))","v":1},{"$f":"IF(IF(ISERROR(VLOOKUP(C8,'Play-off'!$S:$U,3,FALSE)),VLOOKUP(C8,'Play-off'!$S:$U,2,FALSE),VLOOKUP(C8,'Play-off'!$S:$U,3,FALSE))=\"\",\"\",IF(ISERROR(VLOOKUP(C8,'Play-off'!$S:$U,3,FALSE)),VLOOKUP(C8,'Play-off'!$S:$U,2,FALSE),VLOOKUP(C8,'Play-off'!$S:$U,3,FALSE)))","v":3},{"$f":"IF(C8=\"\",\"\",IF(ISERROR(VLOOKUP(C8,Einteilung!B:E,4,FALSE)),VLOOKUP(C8,Einteilung!F:I,4,FALSE),VLOOKUP(C8,Einteilung!B:E,4,FALSE)))","v":"II"},{"$f":"IF(C8=\"\",\"\",VLOOKUP(C8,'Play-off'!C:K,7,FALSE))","v":2}]
[null,4,{"$f":"'Play-off'!AE24","v":"SPG Julbach/Ulrichsb./Klaffer"},{"$f":"IF(ISERROR(VLOOKUP(C9,'Play-off'!S:U,2,FALSE)),VLOOKUP(C9,'Play-off'!S:U,3,FALSE),VLOOKUP(C9,'Play-off'!S:U,2,FALSE))","v":1},{"$f":"IF(IF(ISERROR(VLOOKUP(C9,'Play-off'!$S:$U,3,FALSE)),VLOOKUP(C9,'Play-off'!$S:$U,2,FALSE),VLOOKUP(C9,'Play-off'!$S:$U,3,FALSE))=\"\",\"\",IF(ISERROR(VLOOKUP(C9,'Play-off'!$S:$U,3,FALSE)),VLOOKUP(C9,'Play-off'!$S:$U,2,FALSE),VLOOKUP(C9,'Play-off'!$S:$U,3,FALSE)))","v":1},{"$f":"IF(C9=\"\",\"\",IF(ISERROR(VLOOKUP(C9,Einteilung!B:E,4,FALSE)),VLOOKUP(C9,Einteilung!F:I,4,FALSE),VLOOKUP(C9,Einteilung!B:E,4,FALSE)))","v":"III"},{"$f":"IF(C9=\"\",\"\",VLOOKUP(C9,'Play-off'!C:K,7,FALSE))","v":1}]
[null,5,{"$f":"'Play-off'!AE20","v":"U. Walding/Rottenegg"},{"$f":"IF(ISERROR(VLOOKUP(C10,'Play-off'!S:U,2,FALSE)),VLOOKUP(C10,'Play-off'!S:U,3,FALSE),VLOOKUP(C10,'Play-off'!S:U,2,FALSE))","v":4},{"$f":"IF(IF(ISERROR(VLOOKUP(C10,'Play-off'!$S:$U,3,FALSE)),VLOOKUP(C10,'Play-off'!$S:$U,2,FALSE),VLOOKUP(C10,'Play-off'!$S:$U,3,FALSE))=\"\",\"\",IF(ISERROR(VLOOKUP(C10,'Play-off'!$S:$U,3,FALSE)),VLOOKUP(C10,'Play-off'!$S:$U,2,FALSE),VLOOKUP(C10,'Play-off'!$S:$U,3,FALSE)))","v":""},{"$f":"IF(C10=\"\",\"\",IF(ISERROR(VLOOKUP(C10,Einteilung!B:E,4,FALSE)),VLOOKUP(C10,Einteilung!F:I,4,FALSE),VLOOKUP(C10,Einteilung!B:E,4,FALSE)))","v":"I"},{"$f":"IF(C10=\"\",\"\",VLOOKUP(C10,'Play-off'!C:K,7,FALSE))","v":2}]
[null,6,{"$f":"'Play-off'!AE19","v":"U. St. Martin/Mkr."},{"$f":"IF(ISERROR(VLOOKUP(C11,'Play-off'!S:U,2,FALSE)),VLOOKUP(C11,'Play-off'!S:U,3,FALSE),VLOOKUP(C11,'Play-off'!S:U,2,FALSE))","v":1},{"$f":"IF(IF(ISERROR(VLOOKUP(C11,'Play-off'!$S:$U,3,FALSE)),VLOOKUP(C11,'Play-off'!$S:$U,2,FALSE),VLOOKUP(C11,'Play-off'!$S:$U,3,FALSE))=\"\",\"\",IF(ISERROR(VLOOKUP(C11,'Play-off'!$S:$U,3,FALSE)),VLOOKUP(C11,'Play-off'!$S:$U,2,FALSE),VLOOKUP(C11,'Play-off'!$S:$U,3,FALSE)))","v":""},{"$f":"IF(C11=\"\",\"\",IF(ISERROR(VLOOKUP(C11,Einteilung!B:E,4,FALSE)),VLOOKUP(C11,Einteilung!F:I,4,FALSE),VLOOKUP(C11,Einteilung!B:E,4,FALSE)))","v":"III"},{"$f":"IF(C11=\"\",\"\",VLOOKUP(C11,'Play-off'!C:K,7,FALSE))","v":3}]
[null,7,{"$f":"'Play-off'!AE16","v":"UFC Aigen/Schlägl"},{"$f":"IF(ISERROR(VLOOKUP(C12,'Play-off'!S:U,2,FALSE)),VLOOKUP(C12,'Play-off'!S:U,3,FALSE),VLOOKUP(C12,'Play-off'!S:U,2,FALSE))","v":1},{"$f":"IF(IF(ISERROR(VLOOKUP(C12,'Play-off'!$S:$U,3,FALSE)),VLOOKUP(C12,'Play-off'!$S:$U,2,FALSE),VLOOKUP(C12,'Play-off'!$S:$U,3,FALSE))=\"\",\"\",IF(ISERROR(VLOOKUP(C12,'Play-off'!$S:$U,3,FALSE)),VLOOKUP(C12,'Play-off'!$S:$U,2,FALSE),VLOOKUP(C12,'Play-off'!$S:$U,3,FALSE)))","v":3},{"$f":"IF(C12=\"\",\"\",IF(ISERROR(VLOOKUP(C12,Einteilung!B:E,4,FALSE)),VLOOKUP(C12,Einteilung!F:I,4,FALSE),VLOOKUP(C12,Einteilung!B:E,4,FALSE)))","v":"II"},{"$f":"IF(C12=\"\",\"\",VLOOKUP(C12,'Play-off'!C:K,7,FALSE))","v":3}]
[null,8,{"$f":"'Play-off'!AE15","v":"U. Ried/Riedmark"},{"$f":"IF(ISERROR(VLOOKUP(C13,'Play-off'!S:U,2,FALSE)),VLOOKUP(C13,'Play-off'!S:U,3,FALSE),VLOOKUP(C13,'Play-off'!S:U,2,FALSE))","v":1},{"$f":"IF(IF(ISERROR(VLOOKUP(C13,'Play-off'!$S:$U,3,FALSE)),VLOOKUP(C13,'Play-off'!$S:$U,2,FALSE),VLOOKUP(C13,'Play-off'!$S:$U,3,FALSE))=\"\",\"\",IF(ISERROR(VLOOKUP(C13,'Play-off'!$S:$U,3,FALSE)),VLOOKUP(C13,'Play-off'!$S:$U,2,FALSE),VLOOKUP(C13,'Play-off'!$S:$U,3,FALSE)))","v":2},{"$f":"IF(C13=\"\",\"\",IF(ISERROR(VLOOKUP(C13,Einteilung!B:E,4,FALSE)),VLOOKUP(C13,Einteilung!F:I,4,FALSE),VLOOKUP(C13,Einteilung!B:E,4,FALSE)))","v":"III"},{"$f":"IF(C13=\"\",\"\",VLOOKUP(C13,'Play-off'!C:K,7,FALSE))","v":2}]
[null,9,{"$f":"'Play-off'!AE11","v":"U. Pichling"},{"$f":"IF(ISERROR(VLOOKUP(C14,'Play-off'!S:U,2,FALSE)),VLOOKUP(C14,'Play-off'!S:U,3,FALSE),VLOOKUP(C14,'Play-off'!S:U,2,FALSE))","v":1},{"$f":"IF(IF(ISERROR(VLOOKUP(C14,'Play-off'!$S:$U,3,FALSE)),VLOOKUP(C14,'Play-off'!$S:$U,2,FALSE),VLOOKUP(C14,'Play-off'!$S:$U,3,FALSE))=\"\",\"\",IF(ISERROR(VLOOKUP(C14,'Play-off'!$S:$U,3,FALSE)),VLOOKUP(C14,'Play-off'!$S:$U,2,FALSE),VLOOKUP(C14,'Play-off'!$S:$U,3,FALSE)))","v":""},{"$f":"IF(C14=\"\",\"\",IF(ISERROR(VLOOKUP(C14,Einteilung!B:E,4,FALSE)),VLOOKUP(C14,Einteilung!F:I,4,FALSE),VLOOKUP(C14,Einteilung!B:E,4,FALSE)))","v":"I"},{"$f":"IF(C14=\"\",\"\",VLOOKUP(C14,'Play-off'!C:K,7,FALSE))","v":3}]
[null,10,{"$f":"'Play-off'!AE10","v":"U. Altenfelden"},{"$f":"IF(ISERROR(VLOOKUP(C15,'Play-off'!S:U,2,FALSE)),VLOOKUP(C15,'Play-off'!S:U,3,FALSE),VLOOKUP(C15,'Play-off'!S:U,2,FALSE))","v":0},{"$f":"IF(IF(ISERROR(VLOOKUP(C15,'Play-off'!$S:$U,3,FALSE)),VLOOKUP(C15,'Play-off'!$S:$U,2,FALSE),VLOOKUP(C15,'Play-off'!$S:$U,3,FALSE))=\"\",\"\",IF(ISERROR(VLOOKUP(C15,'Play-off'!$S:$U,3,FALSE)),VLOOKUP(C15,'Play-off'!$S:$U,2,FALSE),VLOOKUP(C15,'Play-off'!$S:$U,3,FALSE)))","v":""},{"$f":"IF(C15=\"\",\"\",IF(ISERROR(VLOOKUP(C15,Einteilung!B:E,4,FALSE)),VLOOKUP(C15,Einteilung!F:I,4,FALSE),VLOOKUP(C15,Einteilung!B:E,4,FALSE)))","v":"I"},{"$f":"IF(C15=\"\",\"\",VLOOKUP(C15,'Play-off'!C:K,7,FALSE))","v":4}]
[null,11,{"$f":"'Play-off'!AE7","v":"U. Lembach"},{"$f":"IF(ISERROR(VLOOKUP(C16,'Play-off'!S:U,2,FALSE)),VLOOKUP(C16,'Play-off'!S:U,3,FALSE),VLOOKUP(C16,'Play-off'!S:U,2,FALSE))","v":2},{"$f":"IF(IF(ISERROR(VLOOKUP(C16,'Play-off'!$S:$U,3,FALSE)),VLOOKUP(C16,'Play-off'!$S:$U,2,FALSE),VLOOKUP(C16,'Play-off'!$S:$U,3,FALSE))=\"\",\"\",IF(ISERROR(VLOOKUP(C16,'Play-off'!$S:$U,3,FALSE)),VLOOKUP(C16,'Play-off'!$S:$U,2,FALSE),VLOOKUP(C16,'Play-off'!$S:$U,3,FALSE)))","v":""},{"$f":"IF(C16=\"\",\"\",IF(ISERROR(VLOOKUP(C16,Einteilung!B:E,4,FALSE)),VLOOKUP(C16,Einteilung!F:I,4,FALSE),VLOOKUP(C16,Einteilung!B:E,4,FALSE)))","v":"II"},{"$f":"IF(C16=\"\",\"\",VLOOKUP(C16,'Play-off'!C:K,7,FALSE))","v":4}]
[null,12,{"$f":"'Play-off'!AE6","v":"SPG Putzleinsdorf/Hofkirchen"},{"$f":"IF(ISERROR(VLOOKUP(C17,'Play-off'!S:U,2,FALSE)),VLOOKUP(C17,'Play-off'!S:U,3,FALSE),VLOOKUP(C17,'Play-off'!S:U,2,FALSE))","v":0},{"$f":"IF(IF(ISERROR(VLOOKUP(C17,'Play-off'!$S:$U,3,FALSE)),VLOOKUP(C17,'Play-off'!$S:$U,2,FALSE),VLOOKUP(C17,'Play-off'!$S:$U,3,FALSE))=\"\",\"\",IF(ISERROR(VLOOKUP(C17,'Play-off'!$S:$U,3,FALSE)),VLOOKUP(C17,'Play-off'!$S:$U,2,FALSE),VLOOKUP(C17,'Play-off'!$S:$U,3,FALSE)))","v":""},{"$f":"IF(C17=\"\",\"\",IF(ISERROR(VLOOKUP(C17,Einteilung!B:E,4,FALSE)),VLOOKUP(C17,Einteilung!F:I,4,FALSE),VLOOKUP(C17,Einteilung!B:E,4,FALSE)))","v":"III"},{"$f":"IF(C17=\"\",\"\",VLOOKUP(C17,'Play-off'!C:K,7,FALSE))","v":4}]

{"sheet":"Statistische Daten","index":6,"n_rows":8,"n_cols":3,"rows_kept":8,"cut":false,"hidden":false,"merged":[[4,1,4,2],[1,1,1,2],[2,1,2,2]]}
[]
[null,"Spiele"]
[null,{"$f":"SUM('Play-off'!D:D)/2+COUNT('Play-off'!M:M)/2+COUNT('Play-off'!T:T)/2","v":30}]
[]
[null,"Erzielte Tore"]
[null,"Vorrunde",{"$f":"SUM('Play-off'!E:E)","v":58}]
[null,"Playoff",{"$f":"SUM('Play-off'!M:M)+SUM('Play-off'!T:T)","v":42}]
[null,"Gesamt",{"$f":"SUM(C6:C7)","v":100}]